{"text_format":"3","workbook":"xlsx","n_sheets":6,"sheets":["Irányítópult","Értékesítés","Bevétel","Költségek","Adók","Kategóriák"],"not_rendered":{"images":1,"defined_names":34},"read":"whole","date_system":"1900"}

{"sheet":"Irányítópult","index":0,"n_rows":19,"n_cols":8,"rows_kept":19,"merged":[[0,2,0,4],[0,6,3,7],[4,1,4,7]]}
[null,"Eredménykimutatás","Időszak: [hónap vagy év]–[év-hónap-nap]"]
[null,"Cég neve","Ezresekben megadva"]
[null,"Aktuális bruttó haszon [L/J]",{"$f":"IFERROR(IF(Bruttó_eredmény_összesen=0,\"-\",Bruttó_eredmény_összesen/Értékesítési_árbevétel_összesen),\"-\")","v":"-"}]
[null,"Értékesítés aktuális megtérülése [T/J]",{"$f":"IFERROR(IF(Nettó_profit=0,\"-\",Nettó_profit/Értékesítési_árbevétel_összesen),\"-\")","v":"-"}]
[null,"Ne módosítsa a kategóriákat ezen a munkalapon, mert az működésképtelenné teheti a képleteket. A Kategória munkalapon felvehet kategóriákat, és frissítheti a megfelelő munkalapokat a kívánt bejegyzésekkel. Ez a munkalap automatikusan frissül."]
[null,"Összegzés","Teljes előző időszak","Teljes költségvetés","Teljes aktuális\nidőszak","Teljes aktuális időszak az értékesítés %-aként","Teljes %-os változás az előző időszakhoz képest","Teljes %-os változás a költségvetéshez képest"]
[null,"Értékesítési árbevétel összesen [J]",{"$f":"SUMIFS(ÉrtékesítésiÁrbevétel[Előző időszak],ÉrtékesítésiÁrbevétel[Árbevétel típusa],\"Értékesítési árbevétel\")","v":0},{"$f":"SUMIFS(ÉrtékesítésiÁrbevétel[Költségvetés],ÉrtékesítésiÁrbevétel[Árbevétel típusa],\"Értékesítési árbevétel\")","v":0},{"$f":"SUMIFS(ÉrtékesítésiÁrbevétel[Aktuális időszak],ÉrtékesítésiÁrbevétel[Árbevétel típusa],\"Értékesítési árbevétel\")","v":0},{"$f":"SUMIFS(ÉrtékesítésiÁrbevétel[Aktuális időszak az értékesítés %-aként],ÉrtékesítésiÁrbevétel[Árbevétel típusa],\"Értékesítési árbevétel\")","v":{"v":0,"d":"0.00%"}},{"$f":"SUMIFS(ÉrtékesítésiÁrbevétel[%-os változás az előző időszakhoz képest],ÉrtékesítésiÁrbevétel[Árbevétel típusa],\"Értékesítési árbevétel\")","v":{"v":0,"d":"0.00%"}},{"$f":"SUMIFS(ÉrtékesítésiÁrbevétel[%-os változás a költségvetéshez képest],ÉrtékesítésiÁrbevétel[Árbevétel típusa],\"Értékesítési árbevétel\")","v":{"v":0,"d":"0.00%"}}]
[null,"Értékesítés teljes költsége [K]",{"$f":"SUMIFS(ÉrtékesítésiÁrbevétel[Előző időszak],ÉrtékesítésiÁrbevétel[Árbevétel típusa],\"Értékesítés költsége\")","v":0},{"$f":"SUMIFS(ÉrtékesítésiÁrbevétel[Költségvetés],ÉrtékesítésiÁrbevétel[Árbevétel típusa],\"Értékesítés költsége\")","v":0},{"$f":"SUMIFS(ÉrtékesítésiÁrbevétel[Aktuális időszak],ÉrtékesítésiÁrbevétel[Árbevétel típusa],\"Értékesítés költsége\")","v":0},{"$f":"SUMIFS(ÉrtékesítésiÁrbevétel[Aktuális időszak az értékesítés %-aként],ÉrtékesítésiÁrbevétel[Árbevétel típusa],\"Értékesítés költsége\")","v":{"v":0,"d":"0.00%"}},{"$f":"SUMIFS(ÉrtékesítésiÁrbevétel[%-os változás az előző időszakhoz képest],ÉrtékesítésiÁrbevétel[Árbevétel típusa],\"Értékesítés költsége\")","v":{"v":0,"d":"0.00%"}},{"$f":"SUMIFS(ÉrtékesítésiÁrbevétel[%-os változás a költségvetéshez képest],ÉrtékesítésiÁrbevétel[Árbevétel típusa],\"Értékesítés költsége\")","v":{"v":0,"d":"0.00%"}}]
[null,"Értékesítési és marketingköltségek összesen [M]",{"$f":"SUMIFS(MűködésiKöltségek[Előző időszak],MűködésiKöltségek[Költség típusa],\"Értékesítés és marketing\")","v":0},{"$f":"SUMIFS(MűködésiKöltségek[Költségvetés],MűködésiKöltségek[Költség típusa],\"Értékesítés és marketing\")","v":0},{"$f":"SUMIFS(MűködésiKöltségek[Aktuális időszak],MűködésiKöltségek[Költség típusa],\"Értékesítés és marketing\")","v":0},{"$f":"SUMIFS(MűködésiKöltségek[Aktuális időszak az értékesítés %-aként],MűködésiKöltségek[Költség típusa],\"Értékesítés és marketing\")","v":{"v":0,"d":"0.00%"}},{"$f":"SUMIFS(MűködésiKöltségek[%-os változás az előző időszakhoz képest],MűködésiKöltségek[Költség típusa],\"Értékesítés és marketing\")","v":{"v":0,"d":"0.00%"}},{"$f":"SUMIFS(MűködésiKöltségek[%-os változás a költségvetéshez képest],MűködésiKöltségek[Költség típusa],\"Értékesítés és marketing\")","v":{"v":0,"d":"0.00%"}}]
[null,"Kutatási és fejlesztési költségek összesen [N]",{"$f":"SUMIFS(MűködésiKöltségek[Előző időszak],MűködésiKöltségek[Költség típusa],\"Kutatás és fejlesztés\")","v":0},{"$f":"SUMIFS(MűködésiKöltségek[Költségvetés],MűködésiKöltségek[Költség típusa],\"Kutatás és fejlesztés\")","v":0},{"$f":"SUMIFS(MűködésiKöltségek[Aktuális időszak],MűködésiKöltségek[Költség típusa],\"Kutatás és fejlesztés\")","v":0},{"$f":"SUMIFS(MűködésiKöltségek[Aktuális időszak az értékesítés %-aként],MűködésiKöltségek[Költség típusa],\"Kutatás és fejlesztés\")","v":{"v":0,"d":"0.00%"}},{"$f":"SUMIFS(MűködésiKöltségek[%-os változás az előző időszakhoz képest],MűködésiKöltségek[Költség típusa],\"Kutatás és fejlesztés\")","v":{"v":0,"d":"0.00%"}},{"$f":"SUMIFS(MűködésiKöltségek[%-os változás a költségvetéshez képest],MűködésiKöltségek[Költség típusa],\"Kutatás és fejlesztés\")","v":{"v":0,"d":"0.00%"}}]
[null,"Általános és adminisztrációs költségek összesen [O]",{"$f":"SUMIFS(MűködésiKöltségek[Előző időszak],MűködésiKöltségek[Költség típusa],\"Általános és adminisztrációs\")","v":0},{"$f":"SUMIFS(MűködésiKöltségek[Költségvetés],MűködésiKöltségek[Költség típusa],\"Általános és adminisztrációs\")","v":0},{"$f":"SUMIFS(MűködésiKöltségek[Aktuális időszak],MűködésiKöltségek[Költség típusa],\"Általános és adminisztrációs\")","v":0},{"$f":"SUMIFS(MűködésiKöltségek[Aktuális időszak az értékesítés %-aként],MűködésiKöltségek[Költség típusa],\"Általános és adminisztrációs\")","v":{"v":0,"d":"0.00%"}},{"$f":"SUMIFS(MűködésiKöltségek[%-os változás az előző időszakhoz képest],MűködésiKöltségek[Költség típusa],\"Általános és adminisztrációs\")","v":{"v":0,"d":"0.00%"}},{"$f":"SUMIFS(MűködésiKöltségek[%-os változás a költségvetéshez képest],MűködésiKöltségek[Költség típusa],\"Általános és adminisztrációs\")","v":{"v":0,"d":"0.00%"}}]
[null,"Összes egyéb működési költség [P]",{"$f":"MűködésiKöltségek[[#Totals],[Előző időszak]]-SUM(C9:C11)","v":0},{"$f":"MűködésiKöltségek[[#Totals],[Költségvetés]]-SUM(D9:D11)","v":0},{"$f":"MűködésiKöltségek[[#Totals],[Aktuális időszak]]-SUM(E9:E11)","v":0},{"$f":"MűködésiKöltségek[[#Totals],[Aktuális időszak az értékesítés %-aként]]-SUM(F9:F11)","v":{"v":0,"d":"0.00%"}},{"$f":"MűködésiKöltségek[[#Totals],[%-os változás az előző időszakhoz képest]]-SUM(G9:G11)","v":{"v":0,"d":"0.00%"}},{"$f":"MűködésiKöltségek[[#Totals],[%-os változás a költségvetéshez képest]]-SUM(H9:H11)","v":{"v":0,"d":"0.00%"}}]
[null,"Egyéb bevétel [S]",{"$f":"Bevétel[[#Totals],[Előző időszak]]","v":0},{"$f":"Bevétel[[#Totals],[Költségvetés]]","v":0},{"$f":"Bevétel[[#Totals],[Aktuális időszak]]","v":0},{"$f":"Bevétel[[#Totals],[Aktuális időszak az értékesítés %-aként]]","v":{"v":0,"d":"0.00%"}},{"$f":"Bevétel[[#Totals],[%-os változás az előző időszakhoz képest]]","v":{"v":0,"d":"0.00%"}},{"$f":"Bevétel[[#Totals],[%-os változás a költségvetéshez képest]]","v":{"v":0,"d":"0.00%"}}]
[null,"Adó összesen [T]",{"$f":"Adók[[#Totals],[Előző időszak]]","v":0},{"$f":"Adók[[#Totals],[Költségvetés]]","v":0},{"$f":"Adók[[#Totals],[Aktuális időszak]]","v":0},{"$f":"Adók[[#Totals],[Aktuális időszak az értékesítés %-aként]]","v":{"v":0,"d":"0.00%"}},{"$f":"Adók[[#Totals],[%-os változás az előző időszakhoz képest]]","v":{"v":0,"d":"0.00%"}},{"$f":"Adók[[#Totals],[%-os változás a költségvetéshez képest]]","v":{"v":0,"d":"0.00%"}}]
[]
[null,"Bruttó eredmény [L=J-K]",{"$f":"IFERROR(C7-C8,\"-\")","v":0},{"$f":"IFERROR(D7-D8,\"-\")","v":0},{"$f":"IFERROR(Értékesítési_árbevétel_összesen-Értékesítés_költségei_összesen,\"-\")","v":0},{"$f":"IFERROR(IF(Értékesítési_árbevétel_összesen=0,\"0,00%\",Bruttó_eredmény_összesen/Értékesítési_árbevétel_összesen),\"-\")","v":"0,00%"},{"$f":"IFERROR(IF(C16=Bruttó_eredmény_összesen,0,IF(Bruttó_eredmény_összesen>C16,ABS((Bruttó_eredmény_összesen/C16)-1),IF(AND(Bruttó_eredmény_összesen<C16,C16<0),-((Bruttó_eredmény_összesen/C16)-1),(Bruttó_eredmény_összesen/C16)-1))),\"-\")","v":{"v":0,"d":"0.00%"}},{"$f":"IFERROR(IF(D16=Bruttó_eredmény_összesen,0,IF(Bruttó_eredmény_összesen>D16,ABS((Bruttó_eredmény_összesen/D16)-1),IF(AND(Bruttó_eredmény_összesen<D16,D16<0),-((Bruttó_eredmény_összesen/D16)-1),(Bruttó_eredmény_összesen/D16)-1))),\"-\")","v":{"v":0,"d":"0.00%"}}]
[null,"Összes működési költség [Q=M+N+O+P]",{"$f":"IFERROR(C9+C10+C11+C12,\"-\")","v":0},{"$f":"IFERROR(D9+D10+D11+D12,\"-\")","v":0},{"$f":"IFERROR(Értékesítés_és_marketing_összesen+Kutatás_és_fejlesztés_összesen+Általános_és_adminisztratív_összesen+Összes_egyéb_költség,\"-\")","v":0},{"$f":"IFERROR(IF(Értékesítési_árbevétel_összesen=0,\"0,00%\",Összes_működési_költség/Értékesítési_árbevétel_összesen),\"-\")","v":"0,00%"},{"$f":"IFERROR(IF(C17=Összes_működési_költség,0,IF(Összes_működési_költség>C17,ABS((Összes_működési_költség/C17)-1),IF(AND(Összes_működési_költség<C17,C17<0),-((Összes_működési_költség/C17)-1),(Összes_működési_költség/C17)-1))),\"-\")","v":{"v":0,"d":"0.00%"}},{"$f":"IFERROR(IF(D17=Összes_működési_költség,0,IF(Összes_működési_költség>D17,ABS((Összes_működési_költség/D17)-1),IF(AND(Összes_működési_költség<D17,D17<0),-((Összes_működési_költség/D17)-1),(Összes_működési_költség/D17)-1))),\"-\")","v":{"v":0,"d":"0.00%"}}]
[null,"Bevétel a működésből [R=L-Q]",{"$f":"IFERROR(C16-C17,\"-\")","v":0},{"$f":"IFERROR(D16-D17,\"-\")","v":0},{"$f":"IFERROR(Bruttó_eredmény_összesen-Összes_működési_költség,\"-\")","v":0},{"$f":"IFERROR(IF(Értékesítési_árbevétel_összesen=0,\"0,00%\",Összes_működési_bevétel/Értékesítési_árbevétel_összesen),\"-\")","v":"0,00%"},{"$f":"IFERROR(IF(C18=Összes_működési_bevétel,0,IF(Összes_működési_bevétel>C18,ABS((Összes_működési_bevétel/C18)-1),IF(AND(Összes_működési_bevétel<C18,C18<0),-((Összes_működési_bevétel/C18)-1),(Összes_működési_bevétel/C18)-1))),\"-\")","v":{"v":0,"d":"0.00%"}},{"$f":"IFERROR(IF(D18=Összes_működési_bevétel,0,IF(Összes_működési_bevétel>D18,ABS((Összes_működési_bevétel/D18)-1),IF(AND(Összes_működési_bevétel<D18,D18<0),-((Összes_működési_bevétel/D18)-1),(Összes_működési_bevétel/D18)-1))),\"-\")","v":{"v":0,"d":"0.00%"}}]
[null,"Nettó eredmény [U=R+S-T]",{"$f":"IFERROR(C18+C13-C14,\"-\")","v":0},{"$f":"IFERROR(D18+D13-D14,\"-\")","v":0},{"$f":"Összes_működési_bevétel+Egyéb_bevétel_összesen-Adó_összesen","v":0},{"$f":"IFERROR(IF(Értékesítési_árbevétel_összesen=0,\"0,00%\",Nettó_profit/Értékesítési_árbevétel_összesen),\"-\")","v":"0,00%"},{"$f":"IFERROR(IF(C19=Nettó_profit,0,IF(Nettó_profit>C19,ABS((Nettó_profit/C19)-1),IF(AND(Nettó_profit<C19,C19<0),-((Nettó_profit/C19)-1),(Nettó_profit/C19)-1))),\"-\")","v":{"v":0,"d":"0.00%"}},{"$f":"IFERROR(IF(D19=Nettó_profit,0,IF(Nettó_profit>D19,ABS((Nettó_profit/D19)-1),IF(AND(Nettó_profit<D19,D19<0),-((Nettó_profit/D19)-1),(Nettó_profit/D19)-1))),\"-\")","v":{"v":0,"d":"0.00%"}}]

{"sheet":"Értékesítés","index":1,"n_rows":13,"n_cols":9,"rows_kept":13,"merged":[[0,7,2,8]]}
[null,{"$f":"Munkafüzet_címe","v":"Eredménykimutatás"}]
[null,{"$f":"Cégnév","v":"Cég neve"},"Ezresekben megadva"]
[null,"Értékesítési árbevétel",{"$f":"IFERROR(Értékesítési_árbevétel,\"-\")","v":0}]
[null,"Árbevétel típusa","Leírás","Előző időszak","Költségvetés","Aktuális időszak","Aktuális időszak az értékesítés %-aként","%-os változás az előző időszakhoz képest","%-os változás a költségvetéshez képest"]
[null,"Értékesítési árbevétel","Termék/szolgáltatás 1",{"$nulls":3},{"$f":"IFERROR(IF(ÉrtékesítésiÁrbevétel[[#Totals],[Aktuális időszak]]=0,\"-\",ÉrtékesítésiÁrbevétel[Aktuális időszak]/Értékesítési_árbevétel),\"-\")","v":"-"},{"$f":"IFERROR(IF(ÉrtékesítésiÁrbevétel[[#This Row],[Előző időszak]]=ÉrtékesítésiÁrbevétel[[#This Row],[Aktuális időszak]],0,IF(ÉrtékesítésiÁrbevétel[[#This Row],[Aktuális időszak]]>ÉrtékesítésiÁrbevétel[[#This Row],[Előző időszak]],ABS((ÉrtékesítésiÁrbevétel[[#This Row],[Aktuális időszak]]/ÉrtékesítésiÁrbevétel[[#This Row],[Előző időszak]])-1),IF(AND(ÉrtékesítésiÁrbevétel[[#This Row],[Aktuális időszak]]<ÉrtékesítésiÁrbevétel[[#This Row],[Előző időszak]],ÉrtékesítésiÁrbevétel[[#This Row],[Előző időszak]]<0),-((ÉrtékesítésiÁrbevétel[[#This Row],[Aktuális időszak]]/ÉrtékesítésiÁrbevétel[[#This Row],[Előző időszak]])-1),(ÉrtékesítésiÁrbevétel[[#This Row],[Aktuális időszak]]/ÉrtékesítésiÁrbevétel[[#This Row],[Előző időszak]])-1))),\"-\")","v":{"v":0,"d":"0.00%"}},{"$f":"IFERROR(IF(ÉrtékesítésiÁrbevétel[[#This Row],[Költségvetés]]=ÉrtékesítésiÁrbevétel[[#This Row],[Aktuális időszak]],0,IF(ÉrtékesítésiÁrbevétel[[#This Row],[Aktuális időszak]]>ÉrtékesítésiÁrbevétel[[#This Row],[Költségvetés]],ABS((ÉrtékesítésiÁrbevétel[[#This Row],[Aktuális időszak]]/ÉrtékesítésiÁrbevétel[[#This Row],[Költségvetés]])-1),IF(AND(ÉrtékesítésiÁrbevétel[[#This Row],[Aktuális időszak]]<ÉrtékesítésiÁrbevétel[[#This Row],[Költségvetés]],ÉrtékesítésiÁrbevétel[[#This Row],[Költségvetés]]<0),-((ÉrtékesítésiÁrbevétel[[#This Row],[Aktuális időszak]]/ÉrtékesítésiÁrbevétel[[#This Row],[Költségvetés]])-1),(ÉrtékesítésiÁrbevétel[[#This Row],[Aktuális időszak]]/ÉrtékesítésiÁrbevétel[[#This Row],[Költségvetés]])-1))),\"-\")","v":{"v":0,"d":"0.00%"}}]
[null,"Értékesítési árbevétel","Termék/szolgáltatás 2",{"$nulls":3},{"$f":"IFERROR(IF(ÉrtékesítésiÁrbevétel[[#Totals],[Aktuális időszak]]=0,\"-\",ÉrtékesítésiÁrbevétel[Aktuális időszak]/Értékesítési_árbevétel),\"-\")","v":"-"},{"$f":"IFERROR(IF(ÉrtékesítésiÁrbevétel[[#This Row],[Előző időszak]]=ÉrtékesítésiÁrbevétel[[#This Row],[Aktuális időszak]],0,IF(ÉrtékesítésiÁrbevétel[[#This Row],[Aktuális időszak]]>ÉrtékesítésiÁrbevétel[[#This Row],[Előző időszak]],ABS((ÉrtékesítésiÁrbevétel[[#This Row],[Aktuális időszak]]/ÉrtékesítésiÁrbevétel[[#This Row],[Előző időszak]])-1),IF(AND(ÉrtékesítésiÁrbevétel[[#This Row],[Aktuális időszak]]<ÉrtékesítésiÁrbevétel[[#This Row],[Előző időszak]],ÉrtékesítésiÁrbevétel[[#This Row],[Előző időszak]]<0),-((ÉrtékesítésiÁrbevétel[[#This Row],[Aktuális időszak]]/ÉrtékesítésiÁrbevétel[[#This Row],[Előző időszak]])-1),(ÉrtékesítésiÁrbevétel[[#This Row],[Aktuális időszak]]/ÉrtékesítésiÁrbevétel[[#This Row],[Előző időszak]])-1))),\"-\")","v":{"v":0,"d":"0.00%"}},{"$f":"IFERROR(IF(ÉrtékesítésiÁrbevétel[[#This Row],[Költségvetés]]=ÉrtékesítésiÁrbevétel[[#This Row],[Aktuális időszak]],0,IF(ÉrtékesítésiÁrbevétel[[#This Row],[Aktuális időszak]]>ÉrtékesítésiÁrbevétel[[#This Row],[Költségvetés]],ABS((ÉrtékesítésiÁrbevétel[[#This Row],[Aktuális időszak]]/ÉrtékesítésiÁrbevétel[[#This Row],[Költségvetés]])-1),IF(AND(ÉrtékesítésiÁrbevétel[[#This Row],[Aktuális időszak]]<ÉrtékesítésiÁrbevétel[[#This Row],[Költségvetés]],ÉrtékesítésiÁrbevétel[[#This Row],[Költségvetés]]<0),-((ÉrtékesítésiÁrbevétel[[#This Row],[Aktuális időszak]]/ÉrtékesítésiÁrbevétel[[#This Row],[Költségvetés]])-1),(ÉrtékesítésiÁrbevétel[[#This Row],[Aktuális időszak]]/ÉrtékesítésiÁrbevétel[[#This Row],[Költségvetés]])-1))),\"-\")","v":{"v":0,"d":"0.00%"}}]
[null,"Értékesítési árbevétel","Termék/szolgáltatás 3",{"$nulls":3},{"$f":"IFERROR(IF(ÉrtékesítésiÁrbevétel[[#Totals],[Aktuális időszak]]=0,\"-\",ÉrtékesítésiÁrbevétel[Aktuális időszak]/Értékesítési_árbevétel),\"-\")","v":"-"},{"$f":"IFERROR(IF(ÉrtékesítésiÁrbevétel[[#This Row],[Előző időszak]]=ÉrtékesítésiÁrbevétel[[#This Row],[Aktuális időszak]],0,IF(ÉrtékesítésiÁrbevétel[[#This Row],[Aktuális időszak]]>ÉrtékesítésiÁrbevétel[[#This Row],[Előző időszak]],ABS((ÉrtékesítésiÁrbevétel[[#This Row],[Aktuális időszak]]/ÉrtékesítésiÁrbevétel[[#This Row],[Előző időszak]])-1),IF(AND(ÉrtékesítésiÁrbevétel[[#This Row],[Aktuális időszak]]<ÉrtékesítésiÁrbevétel[[#This Row],[Előző időszak]],ÉrtékesítésiÁrbevétel[[#This Row],[Előző időszak]]<0),-((ÉrtékesítésiÁrbevétel[[#This Row],[Aktuális időszak]]/ÉrtékesítésiÁrbevétel[[#This Row],[Előző időszak]])-1),(ÉrtékesítésiÁrbevétel[[#This Row],[Aktuális időszak]]/ÉrtékesítésiÁrbevétel[[#This Row],[Előző időszak]])-1))),\"-\")","v":{"v":0,"d":"0.00%"}},{"$f":"IFERROR(IF(ÉrtékesítésiÁrbevétel[[#This Row],[Költségvetés]]=ÉrtékesítésiÁrbevétel[[#This Row],[Aktuális időszak]],0,IF(ÉrtékesítésiÁrbevétel[[#This Row],[Aktuális időszak]]>ÉrtékesítésiÁrbevétel[[#This Row],[Költségvetés]],ABS((ÉrtékesítésiÁrbevétel[[#This Row],[Aktuális időszak]]/ÉrtékesítésiÁrbevétel[[#This Row],[Költségvetés]])-1),IF(AND(ÉrtékesítésiÁrbevétel[[#This Row],[Aktuális időszak]]<ÉrtékesítésiÁrbevétel[[#This Row],[Költségvetés]],ÉrtékesítésiÁrbevétel[[#This Row],[Költségvetés]]<0),-((ÉrtékesítésiÁrbevétel[[#This Row],[Aktuális időszak]]/ÉrtékesítésiÁrbevétel[[#This Row],[Költségvetés]])-1),(ÉrtékesítésiÁrbevétel[[#This Row],[Aktuális időszak]]/ÉrtékesítésiÁrbevétel[[#This Row],[Költségvetés]])-1))),\"-\")","v":{"v":0,"d":"0.00%"}}]
[null,"Értékesítési árbevétel","Termék/szolgáltatás 4",{"$nulls":3},{"$f":"IFERROR(IF(ÉrtékesítésiÁrbevétel[[#Totals],[Aktuális időszak]]=0,\"-\",ÉrtékesítésiÁrbevétel[Aktuális időszak]/Értékesítési_árbevétel),\"-\")","v":"-"},{"$f":"IFERROR(IF(ÉrtékesítésiÁrbevétel[[#This Row],[Előző időszak]]=ÉrtékesítésiÁrbevétel[[#This Row],[Aktuális időszak]],0,IF(ÉrtékesítésiÁrbevétel[[#This Row],[Aktuális időszak]]>ÉrtékesítésiÁrbevétel[[#This Row],[Előző időszak]],ABS((ÉrtékesítésiÁrbevétel[[#This Row],[Aktuális időszak]]/ÉrtékesítésiÁrbevétel[[#This Row],[Előző időszak]])-1),IF(AND(ÉrtékesítésiÁrbevétel[[#This Row],[Aktuális időszak]]<ÉrtékesítésiÁrbevétel[[#This Row],[Előző időszak]],ÉrtékesítésiÁrbevétel[[#This Row],[Előző időszak]]<0),-((ÉrtékesítésiÁrbevétel[[#This Row],[Aktuális időszak]]/ÉrtékesítésiÁrbevétel[[#This Row],[Előző időszak]])-1),(ÉrtékesítésiÁrbevétel[[#This Row],[Aktuális időszak]]/ÉrtékesítésiÁrbevétel[[#This Row],[Előző időszak]])-1))),\"-\")","v":{"v":0,"d":"0.00%"}},{"$f":"IFERROR(IF(ÉrtékesítésiÁrbevétel[[#This Row],[Költségvetés]]=ÉrtékesítésiÁrbevétel[[#This Row],[Aktuális időszak]],0,IF(ÉrtékesítésiÁrbevétel[[#This Row],[Aktuális időszak]]>ÉrtékesítésiÁrbevétel[[#This Row],[Költségvetés]],ABS((ÉrtékesítésiÁrbevétel[[#This Row],[Aktuális időszak]]/ÉrtékesítésiÁrbevétel[[#This Row],[Költségvetés]])-1),IF(AND(ÉrtékesítésiÁrbevétel[[#This Row],[Aktuális időszak]]<ÉrtékesítésiÁrbevétel[[#This Row],[Költségvetés]],ÉrtékesítésiÁrbevétel[[#This Row],[Költségvetés]]<0),-((ÉrtékesítésiÁrbevétel[[#This Row],[Aktuális időszak]]/ÉrtékesítésiÁrbevétel[[#This Row],[Költségvetés]])-1),(ÉrtékesítésiÁrbevétel[[#This Row],[Aktuális időszak]]/ÉrtékesítésiÁrbevétel[[#This Row],[Költségvetés]])-1))),\"-\")","v":{"v":0,"d":"0.00%"}}]
[null,"Értékesítés költsége","Termék/szolgáltatás 1",{"$nulls":3},{"$f":"IFERROR(IF(ÉrtékesítésiÁrbevétel[[#Totals],[Aktuális időszak]]=0,\"-\",ÉrtékesítésiÁrbevétel[Aktuális időszak]/Értékesítési_árbevétel),\"-\")","v":"-"},{"$f":"IFERROR(IF(ÉrtékesítésiÁrbevétel[[#This Row],[Előző időszak]]=ÉrtékesítésiÁrbevétel[[#This Row],[Aktuális időszak]],0,IF(ÉrtékesítésiÁrbevétel[[#This Row],[Aktuális időszak]]>ÉrtékesítésiÁrbevétel[[#This Row],[Előző időszak]],ABS((ÉrtékesítésiÁrbevétel[[#This Row],[Aktuális időszak]]/ÉrtékesítésiÁrbevétel[[#This Row],[Előző időszak]])-1),IF(AND(ÉrtékesítésiÁrbevétel[[#This Row],[Aktuális időszak]]<ÉrtékesítésiÁrbevétel[[#This Row],[Előző időszak]],ÉrtékesítésiÁrbevétel[[#This Row],[Előző időszak]]<0),-((ÉrtékesítésiÁrbevétel[[#This Row],[Aktuális időszak]]/ÉrtékesítésiÁrbevétel[[#This Row],[Előző időszak]])-1),(ÉrtékesítésiÁrbevétel[[#This Row],[Aktuális időszak]]/ÉrtékesítésiÁrbevétel[[#This Row],[Előző időszak]])-1))),\"-\")","v":{"v":0,"d":"0.00%"}},{"$f":"IFERROR(IF(ÉrtékesítésiÁrbevétel[[#This Row],[Költségvetés]]=ÉrtékesítésiÁrbevétel[[#This Row],[Aktuális időszak]],0,IF(ÉrtékesítésiÁrbevétel[[#This Row],[Aktuális időszak]]>ÉrtékesítésiÁrbevétel[[#This Row],[Költségvetés]],ABS((ÉrtékesítésiÁrbevétel[[#This Row],[Aktuális időszak]]/ÉrtékesítésiÁrbevétel[[#This Row],[Költségvetés]])-1),IF(AND(ÉrtékesítésiÁrbevétel[[#This Row],[Aktuális időszak]]<ÉrtékesítésiÁrbevétel[[#This Row],[Költségvetés]],ÉrtékesítésiÁrbevétel[[#This Row],[Költségvetés]]<0),-((ÉrtékesítésiÁrbevétel[[#This Row],[Aktuális időszak]]/ÉrtékesítésiÁrbevétel[[#This Row],[Költségvetés]])-1),(ÉrtékesítésiÁrbevétel[[#This Row],[Aktuális időszak]]/ÉrtékesítésiÁrbevétel[[#This Row],[Költségvetés]])-1))),\"-\")","v":{"v":0,"d":"0.00%"}}]
[null,"Értékesítés költsége","Termék/szolgáltatás 2",{"$nulls":3},{"$f":"IFERROR(IF(ÉrtékesítésiÁrbevétel[[#Totals],[Aktuális időszak]]=0,\"-\",ÉrtékesítésiÁrbevétel[Aktuális időszak]/Értékesítési_árbevétel),\"-\")","v":"-"},{"$f":"IFERROR(IF(ÉrtékesítésiÁrbevétel[[#This Row],[Előző időszak]]=ÉrtékesítésiÁrbevétel[[#This Row],[Aktuális időszak]],0,IF(ÉrtékesítésiÁrbevétel[[#This Row],[Aktuális időszak]]>ÉrtékesítésiÁrbevétel[[#This Row],[Előző időszak]],ABS((ÉrtékesítésiÁrbevétel[[#This Row],[Aktuális időszak]]/ÉrtékesítésiÁrbevétel[[#This Row],[Előző időszak]])-1),IF(AND(ÉrtékesítésiÁrbevétel[[#This Row],[Aktuális időszak]]<ÉrtékesítésiÁrbevétel[[#This Row],[Előző időszak]],ÉrtékesítésiÁrbevétel[[#This Row],[Előző időszak]]<0),-((ÉrtékesítésiÁrbevétel[[#This Row],[Aktuális időszak]]/ÉrtékesítésiÁrbevétel[[#This Row],[Előző időszak]])-1),(ÉrtékesítésiÁrbevétel[[#This Row],[Aktuális időszak]]/ÉrtékesítésiÁrbevétel[[#This Row],[Előző időszak]])-1))),\"-\")","v":{"v":0,"d":"0.00%"}},{"$f":"IFERROR(IF(ÉrtékesítésiÁrbevétel[[#This Row],[Költségvetés]]=ÉrtékesítésiÁrbevétel[[#This Row],[Aktuális időszak]],0,IF(ÉrtékesítésiÁrbevétel[[#This Row],[Aktuális időszak]]>ÉrtékesítésiÁrbevétel[[#This Row],[Költségvetés]],ABS((ÉrtékesítésiÁrbevétel[[#This Row],[Aktuális időszak]]/ÉrtékesítésiÁrbevétel[[#This Row],[Költségvetés]])-1),IF(AND(ÉrtékesítésiÁrbevétel[[#This Row],[Aktuális időszak]]<ÉrtékesítésiÁrbevétel[[#This Row],[Költségvetés]],ÉrtékesítésiÁrbevétel[[#This Row],[Költségvetés]]<0),-((ÉrtékesítésiÁrbevétel[[#This Row],[Aktuális időszak]]/ÉrtékesítésiÁrbevétel[[#This Row],[Költségvetés]])-1),(ÉrtékesítésiÁrbevétel[[#This Row],[Aktuális időszak]]/ÉrtékesítésiÁrbevétel[[#This Row],[Költségvetés]])-1))),\"-\")","v":{"v":0,"d":"0.00%"}}]
[null,"Értékesítés költsége","Termék/szolgáltatás 3",{"$nulls":3},{"$f":"IFERROR(IF(ÉrtékesítésiÁrbevétel[[#Totals],[Aktuális időszak]]=0,\"-\",ÉrtékesítésiÁrbevétel[Aktuális időszak]/Értékesítési_árbevétel),\"-\")","v":"-"},{"$f":"IFERROR(IF(ÉrtékesítésiÁrbevétel[[#This Row],[Előző időszak]]=ÉrtékesítésiÁrbevétel[[#This Row],[Aktuális időszak]],0,IF(ÉrtékesítésiÁrbevétel[[#This Row],[Aktuális időszak]]>ÉrtékesítésiÁrbevétel[[#This Row],[Előző időszak]],ABS((ÉrtékesítésiÁrbevétel[[#This Row],[Aktuális időszak]]/ÉrtékesítésiÁrbevétel[[#This Row],[Előző időszak]])-1),IF(AND(ÉrtékesítésiÁrbevétel[[#This Row],[Aktuális időszak]]<ÉrtékesítésiÁrbevétel[[#This Row],[Előző időszak]],ÉrtékesítésiÁrbevétel[[#This Row],[Előző időszak]]<0),-((ÉrtékesítésiÁrbevétel[[#This Row],[Aktuális időszak]]/ÉrtékesítésiÁrbevétel[[#This Row],[Előző időszak]])-1),(ÉrtékesítésiÁrbevétel[[#This Row],[Aktuális időszak]]/ÉrtékesítésiÁrbevétel[[#This Row],[Előző időszak]])-1))),\"-\")","v":{"v":0,"d":"0.00%"}},{"$f":"IFERROR(IF(ÉrtékesítésiÁrbevétel[[#This Row],[Költségvetés]]=ÉrtékesítésiÁrbevétel[[#This Row],[Aktuális időszak]],0,IF(ÉrtékesítésiÁrbevétel[[#This Row],[Aktuális időszak]]>ÉrtékesítésiÁrbevétel[[#This Row],[Költségvetés]],ABS((ÉrtékesítésiÁrbevétel[[#This Row],[Aktuális időszak]]/ÉrtékesítésiÁrbevétel[[#This Row],[Költségvetés]])-1),IF(AND(ÉrtékesítésiÁrbevétel[[#This Row],[Aktuális időszak]]<ÉrtékesítésiÁrbevétel[[#This Row],[Költségvetés]],ÉrtékesítésiÁrbevétel[[#This Row],[Költségvetés]]<0),-((ÉrtékesítésiÁrbevétel[[#This Row],[Aktuális időszak]]/ÉrtékesítésiÁrbevétel[[#This Row],[Költségvetés]])-1),(ÉrtékesítésiÁrbevétel[[#This Row],[Aktuális időszak]]/ÉrtékesítésiÁrbevétel[[#This Row],[Költségvetés]])-1))),\"-\")","v":{"v":0,"d":"0.00%"}}]
[null,"Értékesítés költsége","Termék/szolgáltatás 4",{"$nulls":3},{"$f":"IFERROR(IF(ÉrtékesítésiÁrbevétel[[#Totals],[Aktuális időszak]]=0,\"-\",ÉrtékesítésiÁrbevétel[Aktuális időszak]/Értékesítési_árbevétel),\"-\")","v":"-"},{"$f":"IFERROR(IF(ÉrtékesítésiÁrbevétel[[#This Row],[Előző időszak]]=ÉrtékesítésiÁrbevétel[[#This Row],[Aktuális időszak]],0,IF(ÉrtékesítésiÁrbevétel[[#This Row],[Aktuális időszak]]>ÉrtékesítésiÁrbevétel[[#This Row],[Előző időszak]],ABS((ÉrtékesítésiÁrbevétel[[#This Row],[Aktuális időszak]]/ÉrtékesítésiÁrbevétel[[#This Row],[Előző időszak]])-1),IF(AND(ÉrtékesítésiÁrbevétel[[#This Row],[Aktuális időszak]]<ÉrtékesítésiÁrbevétel[[#This Row],[Előző időszak]],ÉrtékesítésiÁrbevétel[[#This Row],[Előző időszak]]<0),-((ÉrtékesítésiÁrbevétel[[#This Row],[Aktuális időszak]]/ÉrtékesítésiÁrbevétel[[#This Row],[Előző időszak]])-1),(ÉrtékesítésiÁrbevétel[[#This Row],[Aktuális időszak]]/ÉrtékesítésiÁrbevétel[[#This Row],[Előző időszak]])-1))),\"-\")","v":{"v":0,"d":"0.00%"}},{"$f":"IFERROR(IF(ÉrtékesítésiÁrbevétel[[#This Row],[Költségvetés]]=ÉrtékesítésiÁrbevétel[[#This Row],[Aktuális időszak]],0,IF(ÉrtékesítésiÁrbevétel[[#This Row],[Aktuális időszak]]>ÉrtékesítésiÁrbevétel[[#This Row],[Költségvetés]],ABS((ÉrtékesítésiÁrbevétel[[#This Row],[Aktuális időszak]]/ÉrtékesítésiÁrbevétel[[#This Row],[Költségvetés]])-1),IF(AND(ÉrtékesítésiÁrbevétel[[#This Row],[Aktuális időszak]]<ÉrtékesítésiÁrbevétel[[#This Row],[Költségvetés]],ÉrtékesítésiÁrbevétel[[#This Row],[Költségvetés]]<0),-((ÉrtékesítésiÁrbevétel[[#This Row],[Aktuális időszak]]/ÉrtékesítésiÁrbevétel[[#This Row],[Költségvetés]])-1),(ÉrtékesítésiÁrbevétel[[#This Row],[Aktuális időszak]]/ÉrtékesítésiÁrbevétel[[#This Row],[Költségvetés]])-1))),\"-\")","v":{"v":0,"d":"0.00%"}}]
[null,"Értékesítési árbevétel összesen",null,{"$f":"SUBTOTAL(109,ÉrtékesítésiÁrbevétel[Előző időszak])","v":0},{"$f":"SUBTOTAL(109,ÉrtékesítésiÁrbevétel[Költségvetés])","v":0},{"$f":"SUBTOTAL(109,ÉrtékesítésiÁrbevétel[Aktuális időszak])","v":0},{"$f":"SUBTOTAL(109,ÉrtékesítésiÁrbevétel[Aktuális időszak az értékesítés %-aként])","v":{"v":0,"d":"0.00%"}},{"$f":"SUBTOTAL(109,ÉrtékesítésiÁrbevétel[%-os változás az előző időszakhoz képest])","v":{"v":0,"d":"0.00%"}},{"$f":"SUBTOTAL(109,ÉrtékesítésiÁrbevétel[%-os változás a költségvetéshez képest])","v":{"v":0,"d":"0.00%"}}]

{"sheet":"Bevétel","index":2,"n_rows":7,"n_cols":9,"rows_kept":7,"merged":[[0,7,2,8]]}
[null,{"$f":"Munkafüzet_címe","v":"Eredménykimutatás"}]
[null,{"$f":"Cégnév","v":"Cég neve"},"Ezresekben megadva"]
[null,"Bevétel",{"$f":"IFERROR(Bevétel[[#Totals],[Aktuális időszak]],\"-\")","v":0}]
[null,"Bevétel típusa","Leírás","Előző időszak","Költségvetés","Aktuális időszak","Aktuális időszak az értékesítés %-aként","%-os változás az előző időszakhoz képest","%-os változás a költségvetéshez képest"]
[null,"Bevétel","Egyéb bevétel",{"$nulls":3},{"$f":"IFERROR(IF(Értékesítési_árbevétel=0,\"-\",Bevétel[Aktuális időszak]/Értékesítési_árbevétel),\"-\")","v":"-"},{"$f":"IFERROR(IF(Bevétel[[#This Row],[Előző időszak]]=Bevétel[[#This Row],[Aktuális időszak]],0,IF(Bevétel[[#This Row],[Aktuális időszak]]>Bevétel[[#This Row],[Előző időszak]],ABS((Bevétel[[#This Row],[Aktuális időszak]]/Bevétel[[#This Row],[Előző időszak]])-1),IF(AND(Bevétel[[#This Row],[Aktuális időszak]]<Bevétel[[#This Row],[Előző időszak]],Bevétel[[#This Row],[Előző időszak]]<0),-((Bevétel[[#This Row],[Aktuális időszak]]/Bevétel[[#This Row],[Előző időszak]])-1),(Bevétel[[#This Row],[Aktuális időszak]]/Bevétel[[#This Row],[Előző időszak]])-1))),\"-\")","v":{"v":0,"d":"0.00%"}},{"$f":"IFERROR(IF(Bevétel[[#This Row],[Költségvetés]]=Bevétel[[#This Row],[Aktuális időszak]],0,IF(Bevétel[[#This Row],[Aktuális időszak]]>Bevétel[[#This Row],[Költségvetés]],ABS((Bevétel[[#This Row],[Aktuális időszak]]/Bevétel[[#This Row],[Költségvetés]])-1),IF(AND(Bevétel[[#This Row],[Aktuális időszak]]<Bevétel[[#This Row],[Költségvetés]],Bevétel[[#This Row],[Költségvetés]]<0),-((Bevétel[[#This Row],[Aktuális időszak]]/Bevétel[[#This Row],[Költségvetés]])-1),(Bevétel[[#This Row],[Aktuális időszak]]/Bevétel[[#This Row],[Költségvetés]])-1))),\"-\")","v":{"v":0,"d":"0.00%"}}]
[{"$nulls":6},{"$f":"IFERROR(IF(Értékesítési_árbevétel=0,\"-\",Bevétel[Aktuális időszak]/Értékesítési_árbevétel),\"-\")","v":"-"},{"$f":"IFERROR(IF(Bevétel[[#This Row],[Előző időszak]]=Bevétel[[#This Row],[Aktuális időszak]],0,IF(Bevétel[[#This Row],[Aktuális időszak]]>Bevétel[[#This Row],[Előző időszak]],ABS((Bevétel[[#This Row],[Aktuális időszak]]/Bevétel[[#This Row],[Előző időszak]])-1),IF(AND(Bevétel[[#This Row],[Aktuális időszak]]<Bevétel[[#This Row],[Előző időszak]],Bevétel[[#This Row],[Előző időszak]]<0),-((Bevétel[[#This Row],[Aktuális időszak]]/Bevétel[[#This Row],[Előző időszak]])-1),(Bevétel[[#This Row],[Aktuális időszak]]/Bevétel[[#This Row],[Előző időszak]])-1))),\"-\")","v":{"v":0,"d":"0.00%"}},{"$f":"IFERROR(IF(Bevétel[[#This Row],[Költségvetés]]=Bevétel[[#This Row],[Aktuális időszak]],0,IF(Bevétel[[#This Row],[Aktuális időszak]]>Bevétel[[#This Row],[Költségvetés]],ABS((Bevétel[[#This Row],[Aktuális időszak]]/Bevétel[[#This Row],[Költségvetés]])-1),IF(AND(Bevétel[[#This Row],[Aktuális időszak]]<Bevétel[[#This Row],[Költségvetés]],Bevétel[[#This Row],[Költségvetés]]<0),-((Bevétel[[#This Row],[Aktuális időszak]]/Bevétel[[#This Row],[Költségvetés]])-1),(Bevétel[[#This Row],[Aktuális időszak]]/Bevétel[[#This Row],[Költségvetés]])-1))),\"-\")","v":{"v":0,"d":"0.00%"}}]
[null,"Értékesítési bevétel összesen",null,{"$f":"SUBTOTAL(109,Bevétel[Előző időszak])","v":0},{"$f":"SUBTOTAL(109,Bevétel[Költségvetés])","v":0},{"$f":"SUBTOTAL(109,Bevétel[Aktuális időszak])","v":0},{"$f":"SUBTOTAL(109,Bevétel[Aktuális időszak az értékesítés %-aként])","v":{"v":0,"d":"0.00%"}},{"$f":"SUBTOTAL(109,Bevétel[%-os változás az előző időszakhoz képest])","v":{"v":0,"d":"0.00%"}},{"$f":"SUBTOTAL(109,Bevétel[%-os változás a költségvetéshez képest])","v":{"v":0,"d":"0.00%"}}]

{"sheet":"Költségek","index":3,"n_rows":25,"n_cols":9,"rows_kept":25,"merged":[[0,7,2,8]]}
[null,{"$f":"Munkafüzet_címe","v":"Eredménykimutatás"}]
[null,{"$f":"Cégnév","v":"Cég neve"},"Ezresekben megadva"]
[null,"Működési költségek",{"$f":"IFERROR(MűködésiKöltségek[[#Totals],[Aktuális időszak]],\"-\")","v":0}]
[null,"Költség típusa","Leírás","Előző időszak","Költségvetés","Aktuális időszak","Aktuális időszak az értékesítés %-aként","%-os változás az előző időszakhoz képest","%-os változás a költségvetéshez képest"]
[null,"Értékesítés és marketing","Reklámozás",{"$nulls":3},{"$f":"IFERROR(IF(Értékesítési_árbevétel=0,\"-\",MűködésiKöltségek[Aktuális időszak]/Értékesítési_árbevétel),\"-\")","v":"-"},{"$f":"IFERROR(IF(MűködésiKöltségek[[#This Row],[Előző időszak]]=MűködésiKöltségek[[#This Row],[Aktuális időszak]],0,IF(MűködésiKöltségek[[#This Row],[Aktuális időszak]]>MűködésiKöltségek[[#This Row],[Előző időszak]],ABS((MűködésiKöltségek[[#This Row],[Aktuális időszak]]/MűködésiKöltségek[[#This Row],[Előző időszak]])-1),IF(AND(MűködésiKöltségek[[#This Row],[Aktuális időszak]]<MűködésiKöltségek[[#This Row],[Előző időszak]],MűködésiKöltségek[[#This Row],[Előző időszak]]<0),-((MűködésiKöltségek[[#This Row],[Aktuális időszak]]/MűködésiKöltségek[[#This Row],[Előző időszak]])-1),(MűködésiKöltségek[[#This Row],[Aktuális időszak]]/MűködésiKöltségek[[#This Row],[Előző időszak]])-1))),\"-\")","v":{"v":0,"d":"0.00%"}},{"$f":"IFERROR(IF(MűködésiKöltségek[[#This Row],[Költségvetés]]=MűködésiKöltségek[[#This Row],[Aktuális időszak]],0,IF(MűködésiKöltségek[[#This Row],[Aktuális időszak]]>MűködésiKöltségek[[#This Row],[Költségvetés]],ABS((MűködésiKöltségek[[#This Row],[Aktuális időszak]]/MűködésiKöltségek[[#This Row],[Költségvetés]])-1),IF(AND(MűködésiKöltségek[[#This Row],[Aktuális időszak]]<MűködésiKöltségek[[#This Row],[Költségvetés]],MűködésiKöltségek[[#This Row],[Költségvetés]]<0),-((MűködésiKöltségek[[#This Row],[Aktuális időszak]]/MűködésiKöltségek[[#This Row],[Költségvetés]])-1),(MűködésiKöltségek[[#This Row],[Aktuális időszak]]/MűködésiKöltségek[[#This Row],[Költségvetés]])-1))),\"-\")","v":{"v":0,"d":"0.00%"}}]
[null,"Értékesítés és marketing","Direkt marketing",{"$nulls":3},{"$f":"IFERROR(IF(Értékesítési_árbevétel=0,\"-\",MűködésiKöltségek[Aktuális időszak]/Értékesítési_árbevétel),\"-\")","v":"-"},{"$f":"IFERROR(IF(MűködésiKöltségek[[#This Row],[Előző időszak]]=MűködésiKöltségek[[#This Row],[Aktuális időszak]],0,IF(MűködésiKöltségek[[#This Row],[Aktuális időszak]]>MűködésiKöltségek[[#This Row],[Előző időszak]],ABS((MűködésiKöltségek[[#This Row],[Aktuális időszak]]/MűködésiKöltségek[[#This Row],[Előző időszak]])-1),IF(AND(MűködésiKöltségek[[#This Row],[Aktuális időszak]]<MűködésiKöltségek[[#This Row],[Előző időszak]],MűködésiKöltségek[[#This Row],[Előző időszak]]<0),-((MűködésiKöltségek[[#This Row],[Aktuális időszak]]/MűködésiKöltségek[[#This Row],[Előző időszak]])-1),(MűködésiKöltségek[[#This Row],[Aktuális időszak]]/MűködésiKöltségek[[#This Row],[Előző időszak]])-1))),\"-\")","v":{"v":0,"d":"0.00%"}},{"$f":"IFERROR(IF(MűködésiKöltségek[[#This Row],[Költségvetés]]=MűködésiKöltségek[[#This Row],[Aktuális időszak]],0,IF(MűködésiKöltségek[[#This Row],[Aktuális időszak]]>MűködésiKöltségek[[#This Row],[Költségvetés]],ABS((MűködésiKöltségek[[#This Row],[Aktuális időszak]]/MűködésiKöltségek[[#This Row],[Költségvetés]])-1),IF(AND(MűködésiKöltségek[[#This Row],[Aktuális időszak]]<MűködésiKöltségek[[#This Row],[Költségvetés]],MűködésiKöltségek[[#This Row],[Költségvetés]]<0),-((MűködésiKöltségek[[#This Row],[Aktuális időszak]]/MűködésiKöltségek[[#This Row],[Költségvetés]])-1),(MűködésiKöltségek[[#This Row],[Aktuális időszak]]/MűködésiKöltségek[[#This Row],[Költségvetés]])-1))),\"-\")","v":{"v":0,"d":"0.00%"}}]
[null,"Értékesítés és marketing","Egyéb költség (adja meg)",{"$nulls":3},{"$f":"IFERROR(IF(Értékesítési_árbevétel=0,\"-\",MűködésiKöltségek[Aktuális időszak]/Értékesítési_árbevétel),\"-\")","v":"-"},{"$f":"IFERROR(IF(MűködésiKöltségek[[#This Row],[Előző időszak]]=MűködésiKöltségek[[#This Row],[Aktuális időszak]],0,IF(MűködésiKöltségek[[#This Row],[Aktuális időszak]]>MűködésiKöltségek[[#This Row],[Előző időszak]],ABS((MűködésiKöltségek[[#This Row],[Aktuális időszak]]/MűködésiKöltségek[[#This Row],[Előző időszak]])-1),IF(AND(MűködésiKöltségek[[#This Row],[Aktuális időszak]]<MűködésiKöltségek[[#This Row],[Előző időszak]],MűködésiKöltségek[[#This Row],[Előző időszak]]<0),-((MűködésiKöltségek[[#This Row],[Aktuális időszak]]/MűködésiKöltségek[[#This Row],[Előző időszak]])-1),(MűködésiKöltségek[[#This Row],[Aktuális időszak]]/MűködésiKöltségek[[#This Row],[Előző időszak]])-1))),\"-\")","v":{"v":0,"d":"0.00%"}},{"$f":"IFERROR(IF(MűködésiKöltségek[[#This Row],[Költségvetés]]=MűködésiKöltségek[[#This Row],[Aktuális időszak]],0,IF(MűködésiKöltségek[[#This Row],[Aktuális időszak]]>MűködésiKöltségek[[#This Row],[Költségvetés]],ABS((MűködésiKöltségek[[#This Row],[Aktuális időszak]]/MűködésiKöltségek[[#This Row],[Költségvetés]])-1),IF(AND(MűködésiKöltségek[[#This Row],[Aktuális időszak]]<MűködésiKöltségek[[#This Row],[Költségvetés]],MűködésiKöltségek[[#This Row],[Költségvetés]]<0),-((MűködésiKöltségek[[#This Row],[Aktuális időszak]]/MűködésiKöltségek[[#This Row],[Költségvetés]])-1),(MűködésiKöltségek[[#This Row],[Aktuális időszak]]/MűködésiKöltségek[[#This Row],[Költségvetés]])-1))),\"-\")","v":{"v":0,"d":"0.00%"}}]
[null,"Értékesítés és marketing","Egyéb költség (adja meg)",{"$nulls":3},{"$f":"IFERROR(IF(Értékesítési_árbevétel=0,\"-\",MűködésiKöltségek[Aktuális időszak]/Értékesítési_árbevétel),\"-\")","v":"-"},{"$f":"IFERROR(IF(MűködésiKöltségek[[#This Row],[Előző időszak]]=MűködésiKöltségek[[#This Row],[Aktuális időszak]],0,IF(MűködésiKöltségek[[#This Row],[Aktuális időszak]]>MűködésiKöltségek[[#This Row],[Előző időszak]],ABS((MűködésiKöltségek[[#This Row],[Aktuális időszak]]/MűködésiKöltségek[[#This Row],[Előző időszak]])-1),IF(AND(MűködésiKöltségek[[#This Row],[Aktuális időszak]]<MűködésiKöltségek[[#This Row],[Előző időszak]],MűködésiKöltségek[[#This Row],[Előző időszak]]<0),-((MűködésiKöltségek[[#This Row],[Aktuális időszak]]/MűködésiKöltségek[[#This Row],[Előző időszak]])-1),(MűködésiKöltségek[[#This Row],[Aktuális időszak]]/MűködésiKöltségek[[#This Row],[Előző időszak]])-1))),\"-\")","v":{"v":0,"d":"0.00%"}},{"$f":"IFERROR(IF(MűködésiKöltségek[[#This Row],[Költségvetés]]=MűködésiKöltségek[[#This Row],[Aktuális időszak]],0,IF(MűködésiKöltségek[[#This Row],[Aktuális időszak]]>MűködésiKöltségek[[#This Row],[Költségvetés]],ABS((MűködésiKöltségek[[#This Row],[Aktuális időszak]]/MűködésiKöltségek[[#This Row],[Költségvetés]])-1),IF(AND(MűködésiKöltségek[[#This Row],[Aktuális időszak]]<MűködésiKöltségek[[#This Row],[Költségvetés]],MűködésiKöltségek[[#This Row],[Költségvetés]]<0),-((MűködésiKöltségek[[#This Row],[Aktuális időszak]]/MűködésiKöltségek[[#This Row],[Költségvetés]])-1),(MűködésiKöltségek[[#This Row],[Aktuális időszak]]/MűködésiKöltségek[[#This Row],[Költségvetés]])-1))),\"-\")","v":{"v":0,"d":"0.00%"}}]
[null,"Kutatás és fejlesztés","Technológiai licencek",{"$nulls":3},{"$f":"IFERROR(IF(Értékesítési_árbevétel=0,\"-\",MűködésiKöltségek[Aktuális időszak]/Értékesítési_árbevétel),\"-\")","v":"-"},{"$f":"IFERROR(IF(MűködésiKöltségek[[#This Row],[Előző időszak]]=MűködésiKöltségek[[#This Row],[Aktuális időszak]],0,IF(MűködésiKöltségek[[#This Row],[Aktuális időszak]]>MűködésiKöltségek[[#This Row],[Előző időszak]],ABS((MűködésiKöltségek[[#This Row],[Aktuális időszak]]/MűködésiKöltségek[[#This Row],[Előző időszak]])-1),IF(AND(MűködésiKöltségek[[#This Row],[Aktuális időszak]]<MűködésiKöltségek[[#This Row],[Előző időszak]],MűködésiKöltségek[[#This Row],[Előző időszak]]<0),-((MűködésiKöltségek[[#This Row],[Aktuális időszak]]/MűködésiKöltségek[[#This Row],[Előző időszak]])-1),(MűködésiKöltségek[[#This Row],[Aktuális időszak]]/MűködésiKöltségek[[#This Row],[Előző időszak]])-1))),\"-\")","v":{"v":0,"d":"0.00%"}},{"$f":"IFERROR(IF(MűködésiKöltségek[[#This Row],[Költségvetés]]=MűködésiKöltségek[[#This Row],[Aktuális időszak]],0,IF(MűködésiKöltségek[[#This Row],[Aktuális időszak]]>MűködésiKöltségek[[#This Row],[Költségvetés]],ABS((MűködésiKöltségek[[#This Row],[Aktuális időszak]]/MűködésiKöltségek[[#This Row],[Költségvetés]])-1),IF(AND(MűködésiKöltségek[[#This Row],[Aktuális időszak]]<MűködésiKöltségek[[#This Row],[Költségvetés]],MűködésiKöltségek[[#This Row],[Költségvetés]]<0),-((MűködésiKöltségek[[#This Row],[Aktuális időszak]]/MűködésiKöltségek[[#This Row],[Költségvetés]])-1),(MűködésiKöltségek[[#This Row],[Aktuális időszak]]/MűködésiKöltségek[[#This Row],[Költségvetés]])-1))),\"-\")","v":{"v":0,"d":"0.00%"}}]
[null,"Kutatás és fejlesztés","Szabadalmak ",{"$nulls":3},{"$f":"IFERROR(IF(Értékesítési_árbevétel=0,\"-\",MűködésiKöltségek[Aktuális időszak]/Értékesítési_árbevétel),\"-\")","v":"-"},{"$f":"IFERROR(IF(MűködésiKöltségek[[#This Row],[Előző időszak]]=MűködésiKöltségek[[#This Row],[Aktuális időszak]],0,IF(MűködésiKöltségek[[#This Row],[Aktuális időszak]]>MűködésiKöltségek[[#This Row],[Előző időszak]],ABS((MűködésiKöltségek[[#This Row],[Aktuális időszak]]/MűködésiKöltségek[[#This Row],[Előző időszak]])-1),IF(AND(MűködésiKöltségek[[#This Row],[Aktuális időszak]]<MűködésiKöltségek[[#This Row],[Előző időszak]],MűködésiKöltségek[[#This Row],[Előző időszak]]<0),-((MűködésiKöltségek[[#This Row],[Aktuális időszak]]/MűködésiKöltségek[[#This Row],[Előző időszak]])-1),(MűködésiKöltségek[[#This Row],[Aktuális időszak]]/MűködésiKöltségek[[#This Row],[Előző időszak]])-1))),\"-\")","v":{"v":0,"d":"0.00%"}},{"$f":"IFERROR(IF(MűködésiKöltségek[[#This Row],[Költségvetés]]=MűködésiKöltségek[[#This Row],[Aktuális időszak]],0,IF(MűködésiKöltségek[[#This Row],[Aktuális időszak]]>MűködésiKöltségek[[#This Row],[Költségvetés]],ABS((MűködésiKöltségek[[#This Row],[Aktuális időszak]]/MűködésiKöltségek[[#This Row],[Költségvetés]])-1),IF(AND(MűködésiKöltségek[[#This Row],[Aktuális időszak]]<MűködésiKöltségek[[#This Row],[Költségvetés]],MűködésiKöltségek[[#This Row],[Költségvetés]]<0),-((MűködésiKöltségek[[#This Row],[Aktuális időszak]]/MűködésiKöltségek[[#This Row],[Költségvetés]])-1),(MűködésiKöltségek[[#This Row],[Aktuális időszak]]/MűködésiKöltségek[[#This Row],[Költségvetés]])-1))),\"-\")","v":{"v":0,"d":"0.00%"}}]
[null,"Kutatás és fejlesztés","Egyéb költség (adja meg)",{"$nulls":3},{"$f":"IFERROR(IF(Értékesítési_árbevétel=0,\"-\",MűködésiKöltségek[Aktuális időszak]/Értékesítési_árbevétel),\"-\")","v":"-"},{"$f":"IFERROR(IF(MűködésiKöltségek[[#This Row],[Előző időszak]]=MűködésiKöltségek[[#This Row],[Aktuális időszak]],0,IF(MűködésiKöltségek[[#This Row],[Aktuális időszak]]>MűködésiKöltségek[[#This Row],[Előző időszak]],ABS((MűködésiKöltségek[[#This Row],[Aktuális időszak]]/MűködésiKöltségek[[#This Row],[Előző időszak]])-1),IF(AND(MűködésiKöltségek[[#This Row],[Aktuális időszak]]<MűködésiKöltségek[[#This Row],[Előző időszak]],MűködésiKöltségek[[#This Row],[Előző időszak]]<0),-((MűködésiKöltségek[[#This Row],[Aktuális időszak]]/MűködésiKöltségek[[#This Row],[Előző időszak]])-1),(MűködésiKöltségek[[#This Row],[Aktuális időszak]]/MűködésiKöltségek[[#This Row],[Előző időszak]])-1))),\"-\")","v":{"v":0,"d":"0.00%"}},{"$f":"IFERROR(IF(MűködésiKöltségek[[#This Row],[Költségvetés]]=MűködésiKöltségek[[#This Row],[Aktuális időszak]],0,IF(MűködésiKöltségek[[#This Row],[Aktuális időszak]]>MűködésiKöltségek[[#This Row],[Költségvetés]],ABS((MűködésiKöltségek[[#This Row],[Aktuális időszak]]/MűködésiKöltségek[[#This Row],[Költségvetés]])-1),IF(AND(MűködésiKöltségek[[#This Row],[Aktuális időszak]]<MűködésiKöltségek[[#This Row],[Költségvetés]],MűködésiKöltségek[[#This Row],[Költségvetés]]<0),-((MűködésiKöltségek[[#This Row],[Aktuális időszak]]/MűködésiKöltségek[[#This Row],[Költségvetés]])-1),(MűködésiKöltségek[[#This Row],[Aktuális időszak]]/MűködésiKöltségek[[#This Row],[Költségvetés]])-1))),\"-\")","v":{"v":0,"d":"0.00%"}}]
[null,"Kutatás és fejlesztés","Egyéb költség (adja meg)",{"$nulls":3},{"$f":"IFERROR(IF(Értékesítési_árbevétel=0,\"-\",MűködésiKöltségek[Aktuális időszak]/Értékesítési_árbevétel),\"-\")","v":"-"},{"$f":"IFERROR(IF(MűködésiKöltségek[[#This Row],[Előző időszak]]=MűködésiKöltségek[[#This Row],[Aktuális időszak]],0,IF(MűködésiKöltségek[[#This Row],[Aktuális időszak]]>MűködésiKöltségek[[#This Row],[Előző időszak]],ABS((MűködésiKöltségek[[#This Row],[Aktuális időszak]]/MűködésiKöltségek[[#This Row],[Előző időszak]])-1),IF(AND(MűködésiKöltségek[[#This Row],[Aktuális időszak]]<MűködésiKöltségek[[#This Row],[Előző időszak]],MűködésiKöltségek[[#This Row],[Előző időszak]]<0),-((MűködésiKöltségek[[#This Row],[Aktuális időszak]]/MűködésiKöltségek[[#This Row],[Előző időszak]])-1),(MűködésiKöltségek[[#This Row],[Aktuális időszak]]/MűködésiKöltségek[[#This Row],[Előző időszak]])-1))),\"-\")","v":{"v":0,"d":"0.00%"}},{"$f":"IFERROR(IF(MűködésiKöltségek[[#This Row],[Költségvetés]]=MűködésiKöltségek[[#This Row],[Aktuális időszak]],0,IF(MűködésiKöltségek[[#This Row],[Aktuális időszak]]>MűködésiKöltségek[[#This Row],[Költségvetés]],ABS((MűködésiKöltségek[[#This Row],[Aktuális időszak]]/MűködésiKöltségek[[#This Row],[Költségvetés]])-1),IF(AND(MűködésiKöltségek[[#This Row],[Aktuális időszak]]<MűködésiKöltségek[[#This Row],[Költségvetés]],MűködésiKöltségek[[#This Row],[Költségvetés]]<0),-((MűködésiKöltségek[[#This Row],[Aktuális időszak]]/MűködésiKöltségek[[#This Row],[Költségvetés]])-1),(MűködésiKöltségek[[#This Row],[Aktuális időszak]]/MűködésiKöltségek[[#This Row],[Költségvetés]])-1))),\"-\")","v":{"v":0,"d":"0.00%"}}]
[null,"Általános és adminisztrációs","Bérek és fizetések",{"$nulls":3},{"$f":"IFERROR(IF(Értékesítési_árbevétel=0,\"-\",MűködésiKöltségek[Aktuális időszak]/Értékesítési_árbevétel),\"-\")","v":"-"},{"$f":"IFERROR(IF(MűködésiKöltségek[[#This Row],[Előző időszak]]=MűködésiKöltségek[[#This Row],[Aktuális időszak]],0,IF(MűködésiKöltségek[[#This Row],[Aktuális időszak]]>MűködésiKöltségek[[#This Row],[Előző időszak]],ABS((MűködésiKöltségek[[#This Row],[Aktuális időszak]]/MűködésiKöltségek[[#This Row],[Előző időszak]])-1),IF(AND(MűködésiKöltségek[[#This Row],[Aktuális időszak]]<MűködésiKöltségek[[#This Row],[Előző időszak]],MűködésiKöltségek[[#This Row],[Előző időszak]]<0),-((MűködésiKöltségek[[#This Row],[Aktuális időszak]]/MűködésiKöltségek[[#This Row],[Előző időszak]])-1),(MűködésiKöltségek[[#This Row],[Aktuális időszak]]/MűködésiKöltségek[[#This Row],[Előző időszak]])-1))),\"-\")","v":{"v":0,"d":"0.00%"}},{"$f":"IFERROR(IF(MűködésiKöltségek[[#This Row],[Költségvetés]]=MűködésiKöltségek[[#This Row],[Aktuális időszak]],0,IF(MűködésiKöltségek[[#This Row],[Aktuális időszak]]>MűködésiKöltségek[[#This Row],[Költségvetés]],ABS((MűködésiKöltségek[[#This Row],[Aktuális időszak]]/MűködésiKöltségek[[#This Row],[Költségvetés]])-1),IF(AND(MűködésiKöltségek[[#This Row],[Aktuális időszak]]<MűködésiKöltségek[[#This Row],[Költségvetés]],MűködésiKöltségek[[#This Row],[Költségvetés]]<0),-((MűködésiKöltségek[[#This Row],[Aktuális időszak]]/MűködésiKöltségek[[#This Row],[Költségvetés]])-1),(MűködésiKöltségek[[#This Row],[Aktuális időszak]]/MűködésiKöltségek[[#This Row],[Költségvetés]])-1))),\"-\")","v":{"v":0,"d":"0.00%"}}]
[null,"Általános és adminisztrációs","Külső szolgáltatások",{"$nulls":3},{"$f":"IFERROR(IF(Értékesítési_árbevétel=0,\"-\",MűködésiKöltségek[Aktuális időszak]/Értékesítési_árbevétel),\"-\")","v":"-"},{"$f":"IFERROR(IF(MűködésiKöltségek[[#This Row],[Előző időszak]]=MűködésiKöltségek[[#This Row],[Aktuális időszak]],0,IF(MűködésiKöltségek[[#This Row],[Aktuális időszak]]>MűködésiKöltségek[[#This Row],[Előző időszak]],ABS((MűködésiKöltségek[[#This Row],[Aktuális időszak]]/MűködésiKöltségek[[#This Row],[Előző időszak]])-1),IF(AND(MűködésiKöltségek[[#This Row],[Aktuális időszak]]<MűködésiKöltségek[[#This Row],[Előző időszak]],MűködésiKöltségek[[#This Row],[Előző időszak]]<0),-((MűködésiKöltségek[[#This Row],[Aktuális időszak]]/MűködésiKöltségek[[#This Row],[Előző időszak]])-1),(MűködésiKöltségek[[#This Row],[Aktuális időszak]]/MűködésiKöltségek[[#This Row],[Előző időszak]])-1))),\"-\")","v":{"v":0,"d":"0.00%"}},{"$f":"IFERROR(IF(MűködésiKöltségek[[#This Row],[Költségvetés]]=MűködésiKöltségek[[#This Row],[Aktuális időszak]],0,IF(MűködésiKöltségek[[#This Row],[Aktuális időszak]]>MűködésiKöltségek[[#This Row],[Költségvetés]],ABS((MűködésiKöltségek[[#This Row],[Aktuális időszak]]/MűködésiKöltségek[[#This Row],[Költségvetés]])-1),IF(AND(MűködésiKöltségek[[#This Row],[Aktuális időszak]]<MűködésiKöltségek[[#This Row],[Költségvetés]],MűködésiKöltségek[[#This Row],[Költségvetés]]<0),-((MűködésiKöltségek[[#This Row],[Aktuális időszak]]/MűködésiKöltségek[[#This Row],[Költségvetés]])-1),(MűködésiKöltségek[[#This Row],[Aktuális időszak]]/MűködésiKöltségek[[#This Row],[Költségvetés]])-1))),\"-\")","v":{"v":0,"d":"0.00%"}}]
[null,"Általános és adminisztrációs","Kellékek",{"$nulls":3},{"$f":"IFERROR(IF(Értékesítési_árbevétel=0,\"-\",MűködésiKöltségek[Aktuális időszak]/Értékesítési_árbevétel),\"-\")","v":"-"},{"$f":"IFERROR(IF(MűködésiKöltségek[[#This Row],[Előző időszak]]=MűködésiKöltségek[[#This Row],[Aktuális időszak]],0,IF(MűködésiKöltségek[[#This Row],[Aktuális időszak]]>MűködésiKöltségek[[#This Row],[Előző időszak]],ABS((MűködésiKöltségek[[#This Row],[Aktuális időszak]]/MűködésiKöltségek[[#This Row],[Előző időszak]])-1),IF(AND(MűködésiKöltségek[[#This Row],[Aktuális időszak]]<MűködésiKöltségek[[#This Row],[Előző időszak]],MűködésiKöltségek[[#This Row],[Előző időszak]]<0),-((MűködésiKöltségek[[#This Row],[Aktuális időszak]]/MűködésiKöltségek[[#This Row],[Előző időszak]])-1),(MűködésiKöltségek[[#This Row],[Aktuális időszak]]/MűködésiKöltségek[[#This Row],[Előző időszak]])-1))),\"-\")","v":{"v":0,"d":"0.00%"}},{"$f":"IFERROR(IF(MűködésiKöltségek[[#This Row],[Költségvetés]]=MűködésiKöltségek[[#This Row],[Aktuális időszak]],0,IF(MűködésiKöltségek[[#This Row],[Aktuális időszak]]>MűködésiKöltségek[[#This Row],[Költségvetés]],ABS((MűködésiKöltségek[[#This Row],[Aktuális időszak]]/MűködésiKöltségek[[#This Row],[Költségvetés]])-1),IF(AND(MűködésiKöltségek[[#This Row],[Aktuális időszak]]<MűködésiKöltségek[[#This Row],[Költségvetés]],MűködésiKöltségek[[#This Row],[Költségvetés]]<0),-((MűködésiKöltségek[[#This Row],[Aktuális időszak]]/MűködésiKöltségek[[#This Row],[Költségvetés]])-1),(MűködésiKöltségek[[#This Row],[Aktuális időszak]]/MűködésiKöltségek[[#This Row],[Költségvetés]])-1))),\"-\")","v":{"v":0,"d":"0.00%"}}]
[null,"Általános és adminisztrációs","Étel és szórakozás",{"$nulls":3},{"$f":"IFERROR(IF(Értékesítési_árbevétel=0,\"-\",MűködésiKöltségek[Aktuális időszak]/Értékesítési_árbevétel),\"-\")","v":"-"},{"$f":"IFERROR(IF(MűködésiKöltségek[[#This Row],[Előző időszak]]=MűködésiKöltségek[[#This Row],[Aktuális időszak]],0,IF(MűködésiKöltségek[[#This Row],[Aktuális időszak]]>MűködésiKöltségek[[#This Row],[Előző időszak]],ABS((MűködésiKöltségek[[#This Row],[Aktuális időszak]]/MűködésiKöltségek[[#This Row],[Előző időszak]])-1),IF(AND(MűködésiKöltségek[[#This Row],[Aktuális időszak]]<MűködésiKöltségek[[#This Row],[Előző időszak]],MűködésiKöltségek[[#This Row],[Előző időszak]]<0),-((MűködésiKöltségek[[#This Row],[Aktuális időszak]]/MűködésiKöltségek[[#This Row],[Előző időszak]])-1),(MűködésiKöltségek[[#This Row],[Aktuális időszak]]/MűködésiKöltségek[[#This Row],[Előző időszak]])-1))),\"-\")","v":{"v":0,"d":"0.00%"}},{"$f":"IFERROR(IF(MűködésiKöltségek[[#This Row],[Költségvetés]]=MűködésiKöltségek[[#This Row],[Aktuális időszak]],0,IF(MűködésiKöltségek[[#This Row],[Aktuális időszak]]>MűködésiKöltségek[[#This Row],[Költségvetés]],ABS((MűködésiKöltségek[[#This Row],[Aktuális időszak]]/MűködésiKöltségek[[#This Row],[Költségvetés]])-1),IF(AND(MűködésiKöltségek[[#This Row],[Aktuális időszak]]<MűködésiKöltségek[[#This Row],[Költségvetés]],MűködésiKöltségek[[#This Row],[Költségvetés]]<0),-((MűködésiKöltségek[[#This Row],[Aktuális időszak]]/MűködésiKöltségek[[#This Row],[Költségvetés]])-1),(MűködésiKöltségek[[#This Row],[Aktuális időszak]]/MűködésiKöltségek[[#This Row],[Költségvetés]])-1))),\"-\")","v":{"v":0,"d":"0.00%"}}]
[null,"Általános és adminisztrációs","Bérleti díj",{"$nulls":3},{"$f":"IFERROR(IF(Értékesítési_árbevétel=0,\"-\",MűködésiKöltségek[Aktuális időszak]/Értékesítési_árbevétel),\"-\")","v":"-"},{"$f":"IFERROR(IF(MűködésiKöltségek[[#This Row],[Előző időszak]]=MűködésiKöltségek[[#This Row],[Aktuális időszak]],0,IF(MűködésiKöltségek[[#This Row],[Aktuális időszak]]>MűködésiKöltségek[[#This Row],[Előző időszak]],ABS((MűködésiKöltségek[[#This Row],[Aktuális időszak]]/MűködésiKöltségek[[#This Row],[Előző időszak]])-1),IF(AND(MűködésiKöltségek[[#This Row],[Aktuális időszak]]<MűködésiKöltségek[[#This Row],[Előző időszak]],MűködésiKöltségek[[#This Row],[Előző időszak]]<0),-((MűködésiKöltségek[[#This Row],[Aktuális időszak]]/MűködésiKöltségek[[#This Row],[Előző időszak]])-1),(MűködésiKöltségek[[#This Row],[Aktuális időszak]]/MűködésiKöltségek[[#This Row],[Előző időszak]])-1))),\"-\")","v":{"v":0,"d":"0.00%"}},{"$f":"IFERROR(IF(MűködésiKöltségek[[#This Row],[Költségvetés]]=MűködésiKöltségek[[#This Row],[Aktuális időszak]],0,IF(MűködésiKöltségek[[#This Row],[Aktuális időszak]]>MűködésiKöltségek[[#This Row],[Költségvetés]],ABS((MűködésiKöltségek[[#This Row],[Aktuális időszak]]/MűködésiKöltségek[[#This Row],[Költségvetés]])-1),IF(AND(MűködésiKöltségek[[#This Row],[Aktuális időszak]]<MűködésiKöltségek[[#This Row],[Költségvetés]],MűködésiKöltségek[[#This Row],[Költségvetés]]<0),-((MűködésiKöltségek[[#This Row],[Aktuális időszak]]/MűködésiKöltségek[[#This Row],[Költségvetés]])-1),(MűködésiKöltségek[[#This Row],[Aktuális időszak]]/MűködésiKöltségek[[#This Row],[Költségvetés]])-1))),\"-\")","v":{"v":0,"d":"0.00%"}}]
[null,"Általános és adminisztrációs","Telefon",{"$nulls":3},{"$f":"IFERROR(IF(Értékesítési_árbevétel=0,\"-\",MűködésiKöltségek[Aktuális időszak]/Értékesítési_árbevétel),\"-\")","v":"-"},{"$f":"IFERROR(IF(MűködésiKöltségek[[#This Row],[Előző időszak]]=MűködésiKöltségek[[#This Row],[Aktuális időszak]],0,IF(MűködésiKöltségek[[#This Row],[Aktuális időszak]]>MűködésiKöltségek[[#This Row],[Előző időszak]],ABS((MűködésiKöltségek[[#This Row],[Aktuális időszak]]/MűködésiKöltségek[[#This Row],[Előző időszak]])-1),IF(AND(MűködésiKöltségek[[#This Row],[Aktuális időszak]]<MűködésiKöltségek[[#This Row],[Előző időszak]],MűködésiKöltségek[[#This Row],[Előző időszak]]<0),-((MűködésiKöltségek[[#This Row],[Aktuális időszak]]/MűködésiKöltségek[[#This Row],[Előző időszak]])-1),(MűködésiKöltségek[[#This Row],[Aktuális időszak]]/MűködésiKöltségek[[#This Row],[Előző időszak]])-1))),\"-\")","v":{"v":0,"d":"0.00%"}},{"$f":"IFERROR(IF(MűködésiKöltségek[[#This Row],[Költségvetés]]=MűködésiKöltségek[[#This Row],[Aktuális időszak]],0,IF(MűködésiKöltségek[[#This Row],[Aktuális időszak]]>MűködésiKöltségek[[#This Row],[Költségvetés]],ABS((MűködésiKöltségek[[#This Row],[Aktuális időszak]]/MűködésiKöltségek[[#This Row],[Költségvetés]])-1),IF(AND(MűködésiKöltségek[[#This Row],[Aktuális időszak]]<MűködésiKöltségek[[#This Row],[Költségvetés]],MűködésiKöltségek[[#This Row],[Költségvetés]]<0),-((MűködésiKöltségek[[#This Row],[Aktuális időszak]]/MűködésiKöltségek[[#This Row],[Költségvetés]])-1),(MűködésiKöltségek[[#This Row],[Aktuális időszak]]/MűködésiKöltségek[[#This Row],[Költségvetés]])-1))),\"-\")","v":{"v":0,"d":"0.00%"}}]
[null,"Általános és adminisztrációs","Közművek",{"$nulls":3},{"$f":"IFERROR(IF(Értékesítési_árbevétel=0,\"-\",MűködésiKöltségek[Aktuális időszak]/Értékesítési_árbevétel),\"-\")","v":"-"},{"$f":"IFERROR(IF(MűködésiKöltségek[[#This Row],[Előző időszak]]=MűködésiKöltségek[[#This Row],[Aktuális időszak]],0,IF(MűködésiKöltségek[[#This Row],[Aktuális időszak]]>MűködésiKöltségek[[#This Row],[Előző időszak]],ABS((MűködésiKöltségek[[#This Row],[Aktuális időszak]]/MűködésiKöltségek[[#This Row],[Előző időszak]])-1),IF(AND(MűködésiKöltségek[[#This Row],[Aktuális időszak]]<MűködésiKöltségek[[#This Row],[Előző időszak]],MűködésiKöltségek[[#This Row],[Előző időszak]]<0),-((MűködésiKöltségek[[#This Row],[Aktuális időszak]]/MűködésiKöltségek[[#This Row],[Előző időszak]])-1),(MűködésiKöltségek[[#This Row],[Aktuális időszak]]/MűködésiKöltségek[[#This Row],[Előző időszak]])-1))),\"-\")","v":{"v":0,"d":"0.00%"}},{"$f":"IFERROR(IF(MűködésiKöltségek[[#This Row],[Költségvetés]]=MűködésiKöltségek[[#This Row],[Aktuális időszak]],0,IF(MűködésiKöltségek[[#This Row],[Aktuális időszak]]>MűködésiKöltségek[[#This Row],[Költségvetés]],ABS((MűködésiKöltségek[[#This Row],[Aktuális időszak]]/MűködésiKöltségek[[#This Row],[Költségvetés]])-1),IF(AND(MűködésiKöltségek[[#This Row],[Aktuális időszak]]<MűködésiKöltségek[[#This Row],[Költségvetés]],MűködésiKöltségek[[#This Row],[Költségvetés]]<0),-((MűködésiKöltségek[[#This Row],[Aktuális időszak]]/MűködésiKöltségek[[#This Row],[Költségvetés]])-1),(MűködésiKöltségek[[#This Row],[Aktuális időszak]]/MűködésiKöltségek[[#This Row],[Költségvetés]])-1))),\"-\")","v":{"v":0,"d":"0.00%"}}]
[null,"Általános és adminisztrációs","Értékcsökkenés",{"$nulls":3},{"$f":"IFERROR(IF(Értékesítési_árbevétel=0,\"-\",MűködésiKöltségek[Aktuális időszak]/Értékesítési_árbevétel),\"-\")","v":"-"},{"$f":"IFERROR(IF(MűködésiKöltségek[[#This Row],[Előző időszak]]=MűködésiKöltségek[[#This Row],[Aktuális időszak]],0,IF(MűködésiKöltségek[[#This Row],[Aktuális időszak]]>MűködésiKöltségek[[#This Row],[Előző időszak]],ABS((MűködésiKöltségek[[#This Row],[Aktuális időszak]]/MűködésiKöltségek[[#This Row],[Előző időszak]])-1),IF(AND(MűködésiKöltségek[[#This Row],[Aktuális időszak]]<MűködésiKöltségek[[#This Row],[Előző időszak]],MűködésiKöltségek[[#This Row],[Előző időszak]]<0),-((MűködésiKöltségek[[#This Row],[Aktuális időszak]]/MűködésiKöltségek[[#This Row],[Előző időszak]])-1),(MűködésiKöltségek[[#This Row],[Aktuális időszak]]/MűködésiKöltségek[[#This Row],[Előző időszak]])-1))),\"-\")","v":{"v":0,"d":"0.00%"}},{"$f":"IFERROR(IF(MűködésiKöltségek[[#This Row],[Költségvetés]]=MűködésiKöltségek[[#This Row],[Aktuális időszak]],0,IF(MűködésiKöltségek[[#This Row],[Aktuális időszak]]>MűködésiKöltségek[[#This Row],[Költségvetés]],ABS((MűködésiKöltségek[[#This Row],[Aktuális időszak]]/MűködésiKöltségek[[#This Row],[Költségvetés]])-1),IF(AND(MűködésiKöltségek[[#This Row],[Aktuális időszak]]<MűködésiKöltségek[[#This Row],[Költségvetés]],MűködésiKöltségek[[#This Row],[Költségvetés]]<0),-((MűködésiKöltségek[[#This Row],[Aktuális időszak]]/MűködésiKöltségek[[#This Row],[Költségvetés]])-1),(MűködésiKöltségek[[#This Row],[Aktuális időszak]]/MűködésiKöltségek[[#This Row],[Költségvetés]])-1))),\"-\")","v":{"v":0,"d":"0.00%"}}]
[null,"Általános és adminisztrációs","Biztosítás",{"$nulls":3},{"$f":"IFERROR(IF(Értékesítési_árbevétel=0,\"-\",MűködésiKöltségek[Aktuális időszak]/Értékesítési_árbevétel),\"-\")","v":"-"},{"$f":"IFERROR(IF(MűködésiKöltségek[[#This Row],[Előző időszak]]=MűködésiKöltségek[[#This Row],[Aktuális időszak]],0,IF(MűködésiKöltségek[[#This Row],[Aktuális időszak]]>MűködésiKöltségek[[#This Row],[Előző időszak]],ABS((MűködésiKöltségek[[#This Row],[Aktuális időszak]]/MűködésiKöltségek[[#This Row],[Előző időszak]])-1),IF(AND(MűködésiKöltségek[[#This Row],[Aktuális időszak]]<MűködésiKöltségek[[#This Row],[Előző időszak]],MűködésiKöltségek[[#This Row],[Előző időszak]]<0),-((MűködésiKöltségek[[#This Row],[Aktuális időszak]]/MűködésiKöltségek[[#This Row],[Előző időszak]])-1),(MűködésiKöltségek[[#This Row],[Aktuális időszak]]/MűködésiKöltségek[[#This Row],[Előző időszak]])-1))),\"-\")","v":{"v":0,"d":"0.00%"}},{"$f":"IFERROR(IF(MűködésiKöltségek[[#This Row],[Költségvetés]]=MűködésiKöltségek[[#This Row],[Aktuális időszak]],0,IF(MűködésiKöltségek[[#This Row],[Aktuális időszak]]>MűködésiKöltségek[[#This Row],[Költségvetés]],ABS((MűködésiKöltségek[[#This Row],[Aktuális időszak]]/MűködésiKöltségek[[#This Row],[Költségvetés]])-1),IF(AND(MűködésiKöltségek[[#This Row],[Aktuális időszak]]<MűködésiKöltségek[[#This Row],[Költségvetés]],MűködésiKöltségek[[#This Row],[Költségvetés]]<0),-((MűködésiKöltségek[[#This Row],[Aktuális időszak]]/MűködésiKöltségek[[#This Row],[Költségvetés]])-1),(MűködésiKöltségek[[#This Row],[Aktuális időszak]]/MűködésiKöltségek[[#This Row],[Költségvetés]])-1))),\"-\")","v":{"v":0,"d":"0.00%"}}]
[null,"Általános és adminisztrációs","Javítás és karbantartás",{"$nulls":3},{"$f":"IFERROR(IF(Értékesítési_árbevétel=0,\"-\",MűködésiKöltségek[Aktuális időszak]/Értékesítési_árbevétel),\"-\")","v":"-"},{"$f":"IFERROR(IF(MűködésiKöltségek[[#This Row],[Előző időszak]]=MűködésiKöltségek[[#This Row],[Aktuális időszak]],0,IF(MűködésiKöltségek[[#This Row],[Aktuális időszak]]>MűködésiKöltségek[[#This Row],[Előző időszak]],ABS((MűködésiKöltségek[[#This Row],[Aktuális időszak]]/MűködésiKöltségek[[#This Row],[Előző időszak]])-1),IF(AND(MűködésiKöltségek[[#This Row],[Aktuális időszak]]<MűködésiKöltségek[[#This Row],[Előző időszak]],MűködésiKöltségek[[#This Row],[Előző időszak]]<0),-((MűködésiKöltségek[[#This Row],[Aktuális időszak]]/MűködésiKöltségek[[#This Row],[Előző időszak]])-1),(MűködésiKöltségek[[#This Row],[Aktuális időszak]]/MűködésiKöltségek[[#This Row],[Előző időszak]])-1))),\"-\")","v":{"v":0,"d":"0.00%"}},{"$f":"IFERROR(IF(MűködésiKöltségek[[#This Row],[Költségvetés]]=MűködésiKöltségek[[#This Row],[Aktuális időszak]],0,IF(MűködésiKöltségek[[#This Row],[Aktuális időszak]]>MűködésiKöltségek[[#This Row],[Költségvetés]],ABS((MűködésiKöltségek[[#This Row],[Aktuális időszak]]/MűködésiKöltségek[[#This Row],[Költségvetés]])-1),IF(AND(MűködésiKöltségek[[#This Row],[Aktuális időszak]]<MűködésiKöltségek[[#This Row],[Költségvetés]],MűködésiKöltségek[[#This Row],[Költségvetés]]<0),-((MűködésiKöltségek[[#This Row],[Aktuális időszak]]/MűködésiKöltségek[[#This Row],[Költségvetés]])-1),(MűködésiKöltségek[[#This Row],[Aktuális időszak]]/MűködésiKöltségek[[#This Row],[Költségvetés]])-1))),\"-\")","v":{"v":0,"d":"0.00%"}}]
[null,"Általános és adminisztrációs","Egyéb költség (adja meg)",{"$nulls":3},{"$f":"IFERROR(IF(Értékesítési_árbevétel=0,\"-\",MűködésiKöltségek[Aktuális időszak]/Értékesítési_árbevétel),\"-\")","v":"-"},{"$f":"IFERROR(IF(MűködésiKöltségek[[#This Row],[Előző időszak]]=MűködésiKöltségek[[#This Row],[Aktuális időszak]],0,IF(MűködésiKöltségek[[#This Row],[Aktuális időszak]]>MűködésiKöltségek[[#This Row],[Előző időszak]],ABS((MűködésiKöltségek[[#This Row],[Aktuális időszak]]/MűködésiKöltségek[[#This Row],[Előző időszak]])-1),IF(AND(MűködésiKöltségek[[#This Row],[Aktuális időszak]]<MűködésiKöltségek[[#This Row],[Előző időszak]],MűködésiKöltségek[[#This Row],[Előző időszak]]<0),-((MűködésiKöltségek[[#This Row],[Aktuális időszak]]/MűködésiKöltségek[[#This Row],[Előző időszak]])-1),(MűködésiKöltségek[[#This Row],[Aktuális időszak]]/MűködésiKöltségek[[#This Row],[Előző időszak]])-1))),\"-\")","v":{"v":0,"d":"0.00%"}},{"$f":"IFERROR(IF(MűködésiKöltségek[[#This Row],[Költségvetés]]=MűködésiKöltségek[[#This Row],[Aktuális időszak]],0,IF(MűködésiKöltségek[[#This Row],[Aktuális időszak]]>MűködésiKöltségek[[#This Row],[Költségvetés]],ABS((MűködésiKöltségek[[#This Row],[Aktuális időszak]]/MűködésiKöltségek[[#This Row],[Költségvetés]])-1),IF(AND(MűködésiKöltségek[[#This Row],[Aktuális időszak]]<MűködésiKöltségek[[#This Row],[Költségvetés]],MűködésiKöltségek[[#This Row],[Költségvetés]]<0),-((MűködésiKöltségek[[#This Row],[Aktuális időszak]]/MűködésiKöltségek[[#This Row],[Költségvetés]])-1),(MűködésiKöltségek[[#This Row],[Aktuális időszak]]/MűködésiKöltségek[[#This Row],[Költségvetés]])-1))),\"-\")","v":{"v":0,"d":"0.00%"}}]
[null,"Általános és adminisztrációs","Egyéb költség (adja meg)",{"$nulls":3},{"$f":"IFERROR(IF(Értékesítési_árbevétel=0,\"-\",MűködésiKöltségek[Aktuális időszak]/Értékesítési_árbevétel),\"-\")","v":"-"},{"$f":"IFERROR(IF(MűködésiKöltségek[[#This Row],[Előző időszak]]=MűködésiKöltségek[[#This Row],[Aktuális időszak]],0,IF(MűködésiKöltségek[[#This Row],[Aktuális időszak]]>MűködésiKöltségek[[#This Row],[Előző időszak]],ABS((MűködésiKöltségek[[#This Row],[Aktuális időszak]]/MűködésiKöltségek[[#This Row],[Előző időszak]])-1),IF(AND(MűködésiKöltségek[[#This Row],[Aktuális időszak]]<MűködésiKöltségek[[#This Row],[Előző időszak]],MűködésiKöltségek[[#This Row],[Előző időszak]]<0),-((MűködésiKöltségek[[#This Row],[Aktuális időszak]]/MűködésiKöltségek[[#This Row],[Előző időszak]])-1),(MűködésiKöltségek[[#This Row],[Aktuális időszak]]/MűködésiKöltségek[[#This Row],[Előző időszak]])-1))),\"-\")","v":{"v":0,"d":"0.00%"}},{"$f":"IFERROR(IF(MűködésiKöltségek[[#This Row],[Költségvetés]]=MűködésiKöltségek[[#This Row],[Aktuális időszak]],0,IF(MűködésiKöltségek[[#This Row],[Aktuális időszak]]>MűködésiKöltségek[[#This Row],[Költségvetés]],ABS((MűködésiKöltségek[[#This Row],[Aktuális időszak]]/MűködésiKöltségek[[#This Row],[Költségvetés]])-1),IF(AND(MűködésiKöltségek[[#This Row],[Aktuális időszak]]<MűködésiKöltségek[[#This Row],[Költségvetés]],MűködésiKöltségek[[#This Row],[Költségvetés]]<0),-((MűködésiKöltségek[[#This Row],[Aktuális időszak]]/MűködésiKöltségek[[#This Row],[Költségvetés]])-1),(MűködésiKöltségek[[#This Row],[Aktuális időszak]]/MűködésiKöltségek[[#This Row],[Költségvetés]])-1))),\"-\")","v":{"v":0,"d":"0.00%"}}]
[null,"Összes működési költség",null,{"$f":"SUBTOTAL(109,MűködésiKöltségek[Előző időszak])","v":0},{"$f":"SUBTOTAL(109,MűködésiKöltségek[Költségvetés])","v":0},{"$f":"SUBTOTAL(109,MűködésiKöltségek[Aktuális időszak])","v":0},{"$f":"SUBTOTAL(109,MűködésiKöltségek[Aktuális időszak az értékesítés %-aként])","v":{"v":0,"d":"0.00%"}},{"$f":"SUBTOTAL(109,MűködésiKöltségek[%-os változás az előző időszakhoz képest])","v":{"v":0,"d":"0.00%"}},{"$f":"SUBTOTAL(109,MűködésiKöltségek[%-os változás a költségvetéshez képest])","v":{"v":0,"d":"0.00%"}}]

{"sheet":"Adók","index":4,"n_rows":10,"n_cols":9,"rows_kept":10,"merged":[[0,7,2,8]]}
[null,{"$f":"Munkafüzet_címe","v":"Eredménykimutatás"}]
[null,{"$f":"Cégnév","v":"Cég neve"},"Ezresekben megadva"]
[null,"Adók",{"$f":"IFERROR(Adók[[#Totals],[Aktuális időszak]],\"-\")","v":0}]
[null,"Típus","Leírás","Előző időszak","Költségvetés","Aktuális időszak","Aktuális időszak az értékesítés %-aként","%-os változás az előző időszakhoz képest","%-os változás a költségvetéshez képest"]
[null,"Adók","Jövedelemadó",{"$nulls":3},{"$f":"IFERROR(IF(Értékesítési_árbevétel=0,\"-\",Adók[Aktuális időszak]/Értékesítési_árbevétel),\"-\")","v":"-"},{"$f":"IFERROR(IF(Adók[[#This Row],[Előző időszak]]=Adók[[#This Row],[Aktuális időszak]],0,IF(Adók[[#This Row],[Aktuális időszak]]>Adók[[#This Row],[Előző időszak]],ABS((Adók[[#This Row],[Aktuális időszak]]/Adók[[#This Row],[Előző időszak]])-1),IF(AND(Adók[[#This Row],[Aktuális időszak]]<Adók[[#This Row],[Előző időszak]],Adók[[#This Row],[Előző időszak]]<0),-((Adók[[#This Row],[Aktuális időszak]]/Adók[[#This Row],[Előző időszak]])-1),(Adók[[#This Row],[Aktuális időszak]]/Adók[[#This Row],[Előző időszak]])-1))),\"-\")","v":{"v":0,"d":"0.00%"}},{"$f":"IFERROR(IF(Adók[[#This Row],[Költségvetés]]=Adók[[#This Row],[Aktuális időszak]],0,IF(Adók[[#This Row],[Aktuális időszak]]>Adók[[#This Row],[Költségvetés]],ABS((Adók[[#This Row],[Aktuális időszak]]/Adók[[#This Row],[Költségvetés]])-1),IF(AND(Adók[[#This Row],[Aktuális időszak]]<Adók[[#This Row],[Költségvetés]],Adók[[#This Row],[Költségvetés]]<0),-((Adók[[#This Row],[Aktuális időszak]]/Adók[[#This Row],[Költségvetés]])-1),(Adók[[#This Row],[Aktuális időszak]]/Adók[[#This Row],[Költségvetés]])-1))),\"-\")","v":{"v":0,"d":"0.00%"}}]
[null,"Adók","Munkáltatói hozzájárulás",{"$nulls":3},{"$f":"IFERROR(IF(Értékesítési_árbevétel=0,\"-\",Adók[Aktuális időszak]/Értékesítési_árbevétel),\"-\")","v":"-"},{"$f":"IFERROR(IF(Adók[[#This Row],[Előző időszak]]=Adók[[#This Row],[Aktuális időszak]],0,IF(Adók[[#This Row],[Aktuális időszak]]>Adók[[#This Row],[Előző időszak]],ABS((Adók[[#This Row],[Aktuális időszak]]/Adók[[#This Row],[Előző időszak]])-1),IF(AND(Adók[[#This Row],[Aktuális időszak]]<Adók[[#This Row],[Előző időszak]],Adók[[#This Row],[Előző időszak]]<0),-((Adók[[#This Row],[Aktuális időszak]]/Adók[[#This Row],[Előző időszak]])-1),(Adók[[#This Row],[Aktuális időszak]]/Adók[[#This Row],[Előző időszak]])-1))),\"-\")","v":{"v":0,"d":"0.00%"}},{"$f":"IFERROR(IF(Adók[[#This Row],[Költségvetés]]=Adók[[#This Row],[Aktuális időszak]],0,IF(Adók[[#This Row],[Aktuális időszak]]>Adók[[#This Row],[Költségvetés]],ABS((Adók[[#This Row],[Aktuális időszak]]/Adók[[#This Row],[Költségvetés]])-1),IF(AND(Adók[[#This Row],[Aktuális időszak]]<Adók[[#This Row],[Költségvetés]],Adók[[#This Row],[Költségvetés]]<0),-((Adók[[#This Row],[Aktuális időszak]]/Adók[[#This Row],[Költségvetés]])-1),(Adók[[#This Row],[Aktuális időszak]]/Adók[[#This Row],[Költségvetés]])-1))),\"-\")","v":{"v":0,"d":"0.00%"}}]
[null,"Adók","Ingatlanadó",{"$nulls":3},{"$f":"IFERROR(IF(Értékesítési_árbevétel=0,\"-\",Adók[Aktuális időszak]/Értékesítési_árbevétel),\"-\")","v":"-"},{"$f":"IFERROR(IF(Adók[[#This Row],[Előző időszak]]=Adók[[#This Row],[Aktuális időszak]],0,IF(Adók[[#This Row],[Aktuális időszak]]>Adók[[#This Row],[Előző időszak]],ABS((Adók[[#This Row],[Aktuális időszak]]/Adók[[#This Row],[Előző időszak]])-1),IF(AND(Adók[[#This Row],[Aktuális időszak]]<Adók[[#This Row],[Előző időszak]],Adók[[#This Row],[Előző időszak]]<0),-((Adók[[#This Row],[Aktuális időszak]]/Adók[[#This Row],[Előző időszak]])-1),(Adók[[#This Row],[Aktuális időszak]]/Adók[[#This Row],[Előző időszak]])-1))),\"-\")","v":{"v":0,"d":"0.00%"}},{"$f":"IFERROR(IF(Adók[[#This Row],[Költségvetés]]=Adók[[#This Row],[Aktuális időszak]],0,IF(Adók[[#This Row],[Aktuális időszak]]>Adók[[#This Row],[Költségvetés]],ABS((Adók[[#This Row],[Aktuális időszak]]/Adók[[#This Row],[Költségvetés]])-1),IF(AND(Adók[[#This Row],[Aktuális időszak]]<Adók[[#This Row],[Költségvetés]],Adók[[#This Row],[Költségvetés]]<0),-((Adók[[#This Row],[Aktuális időszak]]/Adók[[#This Row],[Költségvetés]])-1),(Adók[[#This Row],[Aktuális időszak]]/Adók[[#This Row],[Költségvetés]])-1))),\"-\")","v":{"v":0,"d":"0.00%"}}]
[null,"Adók","Egyéb adó (adja meg)",{"$nulls":3},{"$f":"IFERROR(IF(Értékesítési_árbevétel=0,\"-\",Adók[Aktuális időszak]/Értékesítési_árbevétel),\"-\")","v":"-"},{"$f":"IFERROR(IF(Adók[[#This Row],[Előző időszak]]=Adók[[#This Row],[Aktuális időszak]],0,IF(Adók[[#This Row],[Aktuális időszak]]>Adók[[#This Row],[Előző időszak]],ABS((Adók[[#This Row],[Aktuális időszak]]/Adók[[#This Row],[Előző időszak]])-1),IF(AND(Adók[[#This Row],[Aktuális időszak]]<Adók[[#This Row],[Előző időszak]],Adók[[#This Row],[Előző időszak]]<0),-((Adók[[#This Row],[Aktuális időszak]]/Adók[[#This Row],[Előző időszak]])-1),(Adók[[#This Row],[Aktuális időszak]]/Adók[[#This Row],[Előző időszak]])-1))),\"-\")","v":{"v":0,"d":"0.00%"}},{"$f":"IFERROR(IF(Adók[[#This Row],[Költségvetés]]=Adók[[#This Row],[Aktuális időszak]],0,IF(Adók[[#This Row],[Aktuális időszak]]>Adók[[#This Row],[Költségvetés]],ABS((Adók[[#This Row],[Aktuális időszak]]/Adók[[#This Row],[Költségvetés]])-1),IF(AND(Adók[[#This Row],[Aktuális időszak]]<Adók[[#This Row],[Költségvetés]],Adók[[#This Row],[Költségvetés]]<0),-((Adók[[#This Row],[Aktuális időszak]]/Adók[[#This Row],[Költségvetés]])-1),(Adók[[#This Row],[Aktuális időszak]]/Adók[[#This Row],[Költségvetés]])-1))),\"-\")","v":{"v":0,"d":"0.00%"}}]
[null,"Adók","Egyéb adó (adja meg)",{"$nulls":3},{"$f":"IFERROR(IF(Értékesítési_árbevétel=0,\"-\",Adók[Aktuális időszak]/Értékesítési_árbevétel),\"-\")","v":"-"},{"$f":"IFERROR(IF(Adók[[#This Row],[Előző időszak]]=Adók[[#This Row],[Aktuális időszak]],0,IF(Adók[[#This Row],[Aktuális időszak]]>Adók[[#This Row],[Előző időszak]],ABS((Adók[[#This Row],[Aktuális időszak]]/Adók[[#This Row],[Előző időszak]])-1),IF(AND(Adók[[#This Row],[Aktuális időszak]]<Adók[[#This Row],[Előző időszak]],Adók[[#This Row],[Előző időszak]]<0),-((Adók[[#This Row],[Aktuális időszak]]/Adók[[#This Row],[Előző időszak]])-1),(Adók[[#This Row],[Aktuális időszak]]/Adók[[#This Row],[Előző időszak]])-1))),\"-\")","v":{"v":0,"d":"0.00%"}},{"$f":"IFERROR(IF(Adók[[#This Row],[Költségvetés]]=Adók[[#This Row],[Aktuális időszak]],0,IF(Adók[[#This Row],[Aktuális időszak]]>Adók[[#This Row],[Költségvetés]],ABS((Adók[[#This Row],[Aktuális időszak]]/Adók[[#This Row],[Költségvetés]])-1),IF(AND(Adók[[#This Row],[Aktuális időszak]]<Adók[[#This Row],[Költségvetés]],Adók[[#This Row],[Költségvetés]]<0),-((Adók[[#This Row],[Aktuális időszak]]/Adók[[#This Row],[Költségvetés]])-1),(Adók[[#This Row],[Aktuális időszak]]/Adók[[#This Row],[Költségvetés]])-1))),\"-\")","v":{"v":0,"d":"0.00%"}}]
[null,"Adó összesen",null,{"$f":"SUBTOTAL(109,Adók[Előző időszak])","v":0},{"$f":"SUBTOTAL(109,Adók[Költségvetés])","v":0},{"$f":"SUBTOTAL(109,Adók[Aktuális időszak])","v":0},{"$f":"IFERROR(SUBTOTAL(109,Adók[Aktuális időszak az értékesítés %-aként]),\"-\")","v":{"v":0,"d":"0.00%"}},{"$f":"SUBTOTAL(109,Adók[%-os változás az előző időszakhoz képest])","v":{"v":0,"d":"0.00%"}},{"$f":"SUBTOTAL(109,Adók[%-os változás a költségvetéshez képest])","v":{"v":0,"d":"0.00%"}}]

{"sheet":"Kategóriák","index":5,"n_rows":8,"n_cols":2,"rows_kept":8}
[null,"Kategóriák"]
[null,"Értékesítési árbevétel"]
[null,"Értékesítés költsége"]
[null,"Bevétel"]
[null,"Értékesítés és marketing"]
[null,"Kutatás és fejlesztés"]
[null,"Általános és adminisztrációs"]
[null,"Adók"]